{"text_format":"1","workbook":"xlsx","n_sheets":17,"sheets":["Factor Data","Node Data","Arc Data","NodeCopy Data","Trigger Data","_Lookup","_Cohort","Aseptic_Fail","Infection_Fail","THA_Decision","ACR_Status","Mortality","Dependency Data","Last_Surg","Aseptic_Ct","Revision_Ct","Sheet1"],"not_rendered":{"charts":0,"images":0,"macros":1,"external_links":1,"defined_names":91,"comments":1,"pivot_tables":0},"unopened":[],"bounds":{"document_bytes":16777216,"sheet_cells":100000,"rows_first":2000,"rows_last":500,"rows_between":2000,"halvings":0,"cell_chars":16384,"cell_head_chars":4096},"cells_cut":0,"cells_raw":0,"read":"whole","date_system":"1900"}

{"sheet":"Factor Data","index":0,"n_rows":74,"n_cols":11,"rows_kept":74,"cut":false,"hidden":true,"merged":[]}
["Entry Count",8]
["Next Available ID",13]
[]
["ID",1]
["IsActive",true]
["NodeID",1,2,3]
["ArcID",1,2]
["fNodeCopyID"]
["RootNodeID",1]
["FactorName","THA_Decision"]
["IsHidden",false]
[]
["ID",2]
["IsActive",true]
["NodeID",4,5,6,7,8,32,34,35,36,37]
["ArcID",6,38,39,40,41,47]
["fNodeCopyID"]
["RootNodeID",7]
["FactorName","ACR_Status"]
["IsHidden",false]
[]
["ID",7]
["IsActive",true]
["NodeID",19,20,21,48,49,50,51]
["ArcID"]
["fNodeCopyID"]
["RootNodeID",19]
["FactorName","Last_Surg"]
["IsHidden",false]
[]
["ID",8]
["IsActive",true]
["NodeID",22,23,24,25]
["ArcID"]
["fNodeCopyID"]
["RootNodeID",22]
["FactorName","Revision_Ct"]
["IsHidden",false]
[]
["ID",9]
["IsActive",true]
["NodeID",62]
["ArcID",89]
["fNodeCopyID"]
["RootNodeID",62]
["FactorName","Mortality"]
["IsHidden",false]
[]
["ID",10]
["IsActive",true]
["NodeID",38,41,42,52]
["ArcID",54,56,59,73,74,75,90]
["fNodeCopyID",10,11,12]
["RootNodeID",38]
["FactorName","Aseptic_Fail"]
["IsHidden",false]
[]
["ID",11]
["IsActive",true]
["NodeID",58,59,60,61]
["ArcID",82,83,84,85,86,87,88]
["fNodeCopyID",19,20,21]
["RootNodeID",58]
["FactorName","Infection_Fail"]
["IsHidden",false]
[]
["ID",12]
["IsActive",true]
["NodeID",54,55,56,57]
["ArcID"]
["fNodeCopyID"]
["RootNodeID",54]
["FactorName","Aseptic_Ct"]
["IsHidden",false]

{"sheet":"Node Data","index":1,"n_rows":446,"n_cols":4,"rows_kept":446,"cut":false,"hidden":true,"merged":[]}
["Entry Count",37]
["Next Available ID",64]
[]
["ID",1]
["nParentFactorID",1]
["NodeCopyID"]
["PredecessorArcID"]
["SuccessorArcID",1,2]
["QualityFactor",1]
["CostFactor",0]
["IsKeyNode",false]
["NodeName",""]
["Rounded",false]
["nTriggerID"]
[]
["ID",2]
["nParentFactorID",1]
["NodeCopyID"]
["PredecessorArcID",1]
["SuccessorArcID"]
["QualityFactor",1]
["CostFactor",0]
["IsKeyNode",false]
["NodeName","THA"]
["Rounded",true]
["nTriggerID"]
[]
["ID",3]
["nParentFactorID",1]
["NodeCopyID"]
["PredecessorArcID",2]
["SuccessorArcID"]
["QualityFactor",1]
["CostFactor",0]
["IsKeyNode",false]
["NodeName","Consrv Mgmt"]
["Rounded",true]
["nTriggerID"]
[]
["ID",4]
["nParentFactorID",2]
["NodeCopyID"]
["PredecessorArcID"]
["SuccessorArcID",6,38]
["QualityFactor",1]
["CostFactor",0]
["IsKeyNode",false]
["NodeName","THR"]
["Rounded",true]
["nTriggerID"]
[]
["ID",5]
["nParentFactorID",2]
["NodeCopyID"]
["PredecessorArcID",39]
["SuccessorArcID"]
["QualityFactor","qI"]
["CostFactor",0]
["IsKeyNode",false]
["NodeName","ACR I (aseptic)"]
["Rounded",true]
["nTriggerID"]
[]
["ID",6]
["nParentFactorID",2]
["NodeCopyID"]
["PredecessorArcID",40]
["SuccessorArcID"]
["QualityFactor","qII"]
["CostFactor",0]
["IsKeyNode",false]
["NodeName","ACR II (aseptic)"]
["Rounded",true]
["nTriggerID"]
[]
["ID",7]
["nParentFactorID",2]
["NodeCopyID"]
["PredecessorArcID",41]
["SuccessorArcID",47]
["QualityFactor","qIII"]
["CostFactor","cMed"]
["IsKeyNode",false]
["NodeName","ACR III (aseptic)"]
["Rounded",true]
["nTriggerID"]
[]
["ID",8]
["nParentFactorID",2]
["NodeCopyID"]
["PredecessorArcID",47]
["SuccessorArcID"]
["QualityFactor","qIV"]
["CostFactor","cMed+cCustodial"]
["IsKeyNode",false]
["NodeName","ACR IV (aseptic)"]
["Rounded",true]
["nTriggerID"]
[]
["ID",19]
["nParentFactorID",7]
["NodeCopyID"]
["PredecessorArcID"]
["SuccessorArcID"]
["QualityFactor",1]
["CostFactor",0]
["IsKeyNode",false]
["NodeName","Initial THA"]
["Rounded",true]
["nTriggerID"]
[]
["ID",20]
["nParentFactorID",7]
["NodeCopyID"]
["PredecessorArcID"]
["SuccessorArcID"]
["QualityFactor",1]
["CostFactor",0]
["IsKeyNode",false]
["NodeName","Infection Revision 1"]
["Rounded",true]
["nTriggerID"]
[]
["ID",21]
["nParentFactorID",7]
["NodeCopyID"]
["PredecessorArcID"]
["SuccessorArcID"]
["QualityFactor",1]
["CostFactor",0]
["IsKeyNode",false]
["NodeName","Aseptic Revision 1"]
["Rounded",true]
["nTriggerID"]
[]
["ID",22]
["nParentFactorID",8]
["NodeCopyID"]
["PredecessorArcID"]
["SuccessorArcID"]
["QualityFactor",1]
["CostFactor",0]
["IsKeyNode",false]
["NodeName","0"]
["Rounded",true]
["nTriggerID"]
[]
["ID",23]
["nParentFactorID",8]
["NodeCopyID"]
["PredecessorArcID"]
["SuccessorArcID"]
["QualityFactor",1]
["CostFactor",0]
["IsKeyNode",false]
["NodeName","3"]
["Rounded",true]
["nTriggerID"]
[]
["ID",24]
["nParentFactorID",8]
["NodeCopyID"]
["PredecessorArcID"]
["SuccessorArcID"]
["QualityFactor",1]
["CostFactor",0]
["IsKeyNode",false]
["NodeName","2"]
["Rounded",true]
["nTriggerID"]
[]
["ID",25]
["nParentFactorID",8]
["NodeCopyID"]
["PredecessorArcID"]
["SuccessorArcID"]
["QualityFactor",1]
["CostFactor",0]
["IsKeyNode",false]
["NodeName","1"]
["Rounded",true]
["nTriggerID"]
[]
["ID",32]
["nParentFactorID",2]
["NodeCopyID"]
["PredecessorArcID",38]
["SuccessorArcID",39,40,41]
["QualityFactor",1]
["CostFactor",0]
["IsKeyNode",false]
["NodeName","Survive"]
["Rounded",true]
["nTriggerID"]
[]
["ID",34]
["nParentFactorID",2]
["NodeCopyID"]
["PredecessorArcID"]
["SuccessorArcID"]
["QualityFactor","qIV"]
["CostFactor","cMed+cCustodial"]
["IsKeyNode",false]
["NodeName","ACR IV (septic history)"]
["Rounded",true]
["nTriggerID"]
[]
["ID",35]
["nParentFactorID",2]
["NodeCopyID"]
["PredecessorArcID"]
["SuccessorArcID"]
["QualityFactor","qIII"]
["CostFactor","cMed"]
["IsKeyNode",false]
["NodeName","ACR III (septic history)"]
["Rounded",true]
["nTriggerID"]
[]
["ID",36]
["nParentFactorID",2]
["NodeCopyID"]
["PredecessorArcID"]
["SuccessorArcID"]
["QualityFactor","qII"]
["CostFactor",0]
["IsKeyNode",false]
["NodeName","ACR II (septic history)"]
["Rounded",true]
["nTriggerID"]
[]
["ID",37]
["nParentFactorID",2]
["NodeCopyID"]
["PredecessorArcID"]
["SuccessorArcID"]
["QualityFactor","qI"]
["CostFactor",0]
["IsKeyNode",false]
["NodeName","ACR I (septic history)"]
["Rounded",true]
["nTriggerID"]
[]
["ID",38]
["nParentFactorID",10]
["NodeCopyID",11,12]
["PredecessorArcID"]
["SuccessorArcID",54]
["QualityFactor",1]
["CostFactor",0]
["IsKeyNode",false]
["NodeName","Daily Living"]
["Rounded",true]
["nTriggerID"]
[]
["ID",41]
["nParentFactorID",10]
["NodeCopyID",10]
["PredecessorArcID",54]
["SuccessorArcID",59,90]
["QualityFactor",1]
["CostFactor",0]
["IsKeyNode",false]
["NodeName","Aseptic Failure"]
["Rounded",true]
["nTriggerID"]
[]
["ID",42]
["nParentFactorID",10]
["NodeCopyID"]
["PredecessorArcID",90]
["SuccessorArcID",56,73]
["QualityFactor",1]
["CostFactor",0]
["IsKeyNode",false]
["NodeName","Surgery"]
["Rounded",true]
["nTriggerID"]
[]
["ID",48]
["nParentFactorID",7]
["NodeCopyID"]
["PredecessorArcID"]
["SuccessorArcID"]
["QualityFactor",1]
["CostFactor",0]
["IsKeyNode",false]
["NodeName","Infection Revision 2"]
["Rounded",true]
["nTriggerID"]
[]
["ID",49]
["nParentFactorID",7]
["NodeCopyID"]
["PredecessorArcID"]
["SuccessorArcID"]
["QualityFactor",1]
["CostFactor",0]
["IsKeyNode",false]
["NodeName","Infection Revision 3"]
["Rounded",true]
["nTriggerID"]
[]
["ID",50]
["nParentFactorID",7]
["NodeCopyID"]
["PredecessorArcID"]
["SuccessorArcID"]
["QualityFactor",1]
["CostFactor",0]
["IsKeyNode",false]
["NodeName","Aseptic Revision 2"]
["Rounded",true]
["nTriggerID"]
[]
["ID",51]
["nParentFactorID",7]
["NodeCopyID"]
["PredecessorArcID"]
["SuccessorArcID"]
["QualityFactor",1]
["CostFactor",0]
["IsKeyNode",false]
["NodeName","Aseptic Revision 3"]
["Rounded",true]
["nTriggerID"]
[]
["ID",52]
["nParentFactorID",10]
["NodeCopyID"]
["PredecessorArcID",73]
["SuccessorArcID",74,75]
["QualityFactor",1]
["CostFactor",0]
["IsKeyNode",false]
["NodeName","Survive"]
["Rounded",true]
["nTriggerID"]
[]
["ID",54]
["nParentFactorID",12]
["NodeCopyID"]
["PredecessorArcID"]
["SuccessorArcID"]
["QualityFactor",1]
["CostFactor",0]
["IsKeyNode",false]
["NodeName","0"]
["Rounded",true]
["nTriggerID"]
[]
["ID",55]
["nParentFactorID",12]
["NodeCopyID"]
["PredecessorArcID"]
["SuccessorArcID"]
["QualityFactor",1]
["CostFactor",0]
["IsKeyNode",false]
["NodeName","3"]
["Rounded",true]
["nTriggerID"]
[]
["ID",56]
["nParentFactorID",12]
["NodeCopyID"]
["PredecessorArcID"]
["SuccessorArcID"]
["QualityFactor",1]
["CostFactor",0]
["IsKeyNode",false]
["NodeName","2"]
["Rounded",true]
["nTriggerID"]
[]
["ID",57]
["nParentFactorID",12]
["NodeCopyID"]
["PredecessorArcID"]
["SuccessorArcID"]
["QualityFactor",1]
["CostFactor",0]
["IsKeyNode",false]
["NodeName","1"]
["Rounded",true]
["nTriggerID"]
[]
["ID",58]
["nParentFactorID",11]
["NodeCopyID",20,21]
["PredecessorArcID"]
["SuccessorArcID",82]
["QualityFactor",1]
["CostFactor",0]
["IsKeyNode",false]
["NodeName","Daily Living"]
["Rounded",true]
["nTriggerID"]
[]
["ID",59]
["nParentFactorID",11]
["NodeCopyID",19]
["PredecessorArcID",82]
["SuccessorArcID",88,83]
["QualityFactor",1]
["CostFactor",0]
["IsKeyNode",false]
["NodeName","Infection Failure"]
["Rounded",true]
["nTriggerID"]
[]
["ID",60]
["nParentFactorID",11]
["NodeCopyID"]
["PredecessorArcID",83]
["SuccessorArcID",87,84]
["QualityFactor",1]
["CostFactor",0]
["IsKeyNode",false]
["NodeName","Surgery"]
["Rounded",true]
["nTriggerID"]
[]
["ID",61]
["nParentFactorID",11]
["NodeCopyID"]
["PredecessorArcID",84]
["SuccessorArcID",86,85]
["QualityFactor",1]
["CostFactor",0]
["IsKeyNode",false]
["NodeName","Survive"]
["Rounded",true]
["nTriggerID"]
[]
["ID",62]
["nParentFactorID",9]
["NodeCopyID"]
["PredecessorArcID"]
["SuccessorArcID",89]
["QualityFactor",1]
["CostFactor",0]
["IsKeyNode",false]
["NodeName","Alive"]
["Rounded",true]
["nTriggerID"]

{"sheet":"Arc Data","index":2,"n_rows":278,"n_cols":10,"rows_kept":278,"cut":false,"hidden":true,"merged":[]}
["Entry Count",23]
["Next Available ID",91]
[]
["ID",1]
["aParentFactorID",1]
["Stochastic",false]
["Orientation",3.1415927410125732]
["PredecessorNodeID",1]
["SuccessorNodeID",2]
["SuccessorNodeCopyID",0]
["TriggerID",1]
["RateProb","dTHA"]
["QualityToll",0]
["CostToll","cHospInit+cPhys+cRehab"]
[]
["ID",2]
["aParentFactorID",1]
["Stochastic",false]
["Orientation",3.1415927410125732]
["PredecessorNodeID",1]
["SuccessorNodeID",3]
["SuccessorNodeCopyID",0]
["TriggerID"]
["RateProb","1-dTHA"]
["QualityToll",0]
["CostToll",0]
[]
["ID",6]
["aParentFactorID",2]
["Stochastic",false]
["Orientation",3.1415927410125732]
["PredecessorNodeID",4]
["SuccessorNodeID",0]
["SuccessorNodeCopyID",0]
["TriggerID"]
["RateProb","pSurgMort"]
["QualityToll",0]
["CostToll",0]
[]
["ID",38]
["aParentFactorID",2]
["Stochastic",false]
["Orientation",3.1415927410125732]
["PredecessorNodeID",4]
["SuccessorNodeID",32]
["SuccessorNodeCopyID",0]
["TriggerID"]
["RateProb","1-pSurgMort"]
["QualityToll",0]
["CostToll",0]
[]
["ID",39]
["aParentFactorID",2]
["Stochastic",false]
["Orientation",3.1415927410125732]
["PredecessorNodeID",32]
["SuccessorNodeID",5]
["SuccessorNodeCopyID",0]
["TriggerID"]
["RateProb","pSuccess"]
["QualityToll",0]
["CostToll",0]
[]
["ID",40]
["aParentFactorID",2]
["Stochastic",false]
["Orientation",3.1415927410125732]
["PredecessorNodeID",32]
["SuccessorNodeID",6]
["SuccessorNodeCopyID",0]
["TriggerID"]
["RateProb","pFair"]
["QualityToll",0]
["CostToll",0]
[]
["ID",41]
["aParentFactorID",2]
["Stochastic",false]
["Orientation",3.1415927410125732]
["PredecessorNodeID",32]
["SuccessorNodeID",7]
["SuccessorNodeCopyID",0]
["TriggerID"]
["RateProb","pFailure"]
["QualityToll",0]
["CostToll",0]
[]
["ID",47]
["aParentFactorID",2]
["Stochastic",true]
["Orientation",-1.5707963705062866]
["PredecessorNodeID",7]
["SuccessorNodeID",8]
["SuccessorNodeCopyID",0]
["TriggerID"]
["RateProb","ID 14"]
["QualityToll",0]
["CostToll",0]
[]
["ID",54]
["aParentFactorID",10]
["Stochastic",true]
["Orientation",3.1415927410125732]
["PredecessorNodeID",38]
["SuccessorNodeID",41]
["SuccessorNodeCopyID",0]
["TriggerID",38,40,44,45,46]
["RateProb","ID 15"]
["QualityToll",0]
["CostToll",0]
[]
["ID",56]
["aParentFactorID",10]
["Stochastic",false]
["Orientation",3.1415927410125732]
["PredecessorNodeID",42]
["SuccessorNodeID",0]
["SuccessorNodeCopyID",0]
["TriggerID"]
["RateProb","pASurgMort"]
["QualityToll",0]
["CostToll",0]
[]
["ID",59]
["aParentFactorID",10]
["Stochastic",false]
["Orientation",3.1415927410125732]
["PredecessorNodeID",41]
["SuccessorNodeID",38]
["SuccessorNodeCopyID",12]
["TriggerID"]
["RateProb","ID 17"]
["QualityToll",0]
["CostToll",0]
[]
["ID",73]
["aParentFactorID",10]
["Stochastic",false]
["Orientation",3.1415927410125732]
["PredecessorNodeID",42]
["SuccessorNodeID",52]
["SuccessorNodeCopyID",0]
["TriggerID"]
["RateProb","1-pASurgMort"]
["QualityToll",0]
["CostToll",0]
[]
["ID",74]
["aParentFactorID",10]
["Stochastic",false]
["Orientation",3.1415927410125732]
["PredecessorNodeID",52]
["SuccessorNodeID",38]
["SuccessorNodeCopyID",11]
["TriggerID",42,43]
["RateProb","ID 19"]
["QualityToll",0]
["CostToll",0]
[]
["ID",75]
["aParentFactorID",10]
["Stochastic",false]
["Orientation",3.1415927410125732]
["PredecessorNodeID",52]
["SuccessorNodeID",41]
["SuccessorNodeCopyID",10]
["TriggerID"]
["RateProb","ID 20"]
["QualityToll",0]
["CostToll",0]
[]
["ID",82]
["aParentFactorID",11]
["Stochastic",true]
["Orientation",3.1415927410125732]
["PredecessorNodeID",58]
["SuccessorNodeID",59]
["SuccessorNodeCopyID",0]
["TriggerID",36]
["RateProb","ID 21"]
["QualityToll",0]
["CostToll",0]
[]
["ID",83]
["aParentFactorID",11]
["Stochastic",false]
["Orientation",3.1415927410125732]
["PredecessorNodeID",59]
["SuccessorNodeID",60]
["SuccessorNodeCopyID",0]
["TriggerID",22,23,24,30,31,32]
["RateProb","ID 23"]
["QualityToll",0]
["CostToll","cHospRev+cPhys+cRehab"]
[]
["ID",84]
["aParentFactorID",11]
["Stochastic",false]
["Orientation",3.1415927410125732]
["PredecessorNodeID",60]
["SuccessorNodeID",61]
["SuccessorNodeCopyID",0]
["TriggerID"]
["RateProb","1-pInfecMort"]
["QualityToll",0]
["CostToll",0]
[]
["ID",85]
["aParentFactorID",11]
["Stochastic",false]
["Orientation",3.1415927410125732]
["PredecessorNodeID",61]
["SuccessorNodeID",59]
["SuccessorNodeCopyID",19]
["TriggerID"]
["RateProb","pInfecFail"]
["QualityToll",0]
["CostToll",0]
[]
["ID",86]
["aParentFactorID",11]
["Stochastic",false]
["Orientation",3.1415927410125732]
["PredecessorNodeID",61]
["SuccessorNodeID",58]
["SuccessorNodeCopyID",20]
["TriggerID",37]
["RateProb","pInfecFair"]
["QualityToll",0]
["CostToll",0]
[]
["ID",87]
["aParentFactorID",11]
["Stochastic",false]
["Orientation",3.1415927410125732]
["PredecessorNodeID",60]
["SuccessorNodeID",0]
["SuccessorNodeCopyID",0]
["TriggerID"]
["RateProb","pInfecMort"]
["QualityToll",0]
["CostToll",0]
[]
["ID",88]
["aParentFactorID",11]
["Stochastic",false]
["Orientation",3.1415927410125732]
["PredecessorNodeID",59]
["SuccessorNodeID",58]
["SuccessorNodeCopyID",21]
["TriggerID"]
["RateProb","ID 22"]
["QualityToll",0]
["CostToll",0]
[]
["ID",89]
["aParentFactorID",9]
["Stochastic",true]
["Orientation",3.1415927410125732]
["PredecessorNodeID",62]
["SuccessorNodeID",0]
["SuccessorNodeCopyID",0]
["TriggerID"]
["RateProb","rMortUS(_t+Age,Gender)"]
["QualityToll",0]
["CostToll",0]
[]
["ID",90]
["aParentFactorID",10]
["Stochastic",false]
["Orientation",3.1415927410125732]
["PredecessorNodeID",41]
["SuccessorNodeID",42]
["SuccessorNodeCopyID",0]
["TriggerID",47,48,49,50,51,52,53,54,55]
["RateProb","ID 24"]
["QualityToll",0]
["CostToll","cTotRev"]

{"sheet":"NodeCopy Data","index":3,"n_rows":42,"n_cols":2,"rows_kept":42,"cut":false,"hidden":true,"merged":[]}
["Entry Count",8]
["Next Available ID",22]
[]
["ID",5]
["ncParentFactorID",4]
["NodeOriginalID",26]
["cPredecessorArcID"]
[]
["ID",6]
["ncParentFactorID",4]
["NodeOriginalID",26]
["cPredecessorArcID"]
[]
["ID",10]
["ncParentFactorID",10]
["NodeOriginalID",41]
["cPredecessorArcID",75]
[]
["ID",11]
["ncParentFactorID",10]
["NodeOriginalID",38]
["cPredecessorArcID",74]
[]
["ID",12]
["ncParentFactorID",10]
["NodeOriginalID",38]
["cPredecessorArcID",59]
[]
["ID",19]
["ncParentFactorID",11]
["NodeOriginalID",59]
["cPredecessorArcID",85]
[]
["ID",20]
["ncParentFactorID",11]
["NodeOriginalID",58]
["cPredecessorArcID",86]
[]
["ID",21]
["ncParentFactorID",11]
["NodeOriginalID",58]
["cPredecessorArcID",88]

{"sheet":"Trigger Data","index":4,"n_rows":187,"n_cols":2,"rows_kept":187,"cut":false,"hidden":true,"merged":[]}
["Entry Count",37]
["Next Available ID",56]
[]
["ID",1]
["FactorTriggeredID",2]
["OriginNodeID","(any node)"]
["DestinationNodeID",4]
[]
["ID",4]
["FactorTriggeredID","**Deleted**"]
["OriginNodeID","**Deleted**"]
["DestinationNodeID","**Deleted**"]
[]
["ID",5]
["FactorTriggeredID","**Deleted**"]
["OriginNodeID","**Deleted**"]
["DestinationNodeID","**Deleted**"]
[]
["ID",6]
["FactorTriggeredID","**Deleted**"]
["OriginNodeID","**Deleted**"]
["DestinationNodeID","**Deleted**"]
[]
["ID",7]
["FactorTriggeredID",8]
["OriginNodeID",24]
["DestinationNodeID",23]
[]
["ID",8]
["FactorTriggeredID",8]
["OriginNodeID",25]
["DestinationNodeID",24]
[]
["ID",9]
["FactorTriggeredID",8]
["OriginNodeID",22]
["DestinationNodeID",25]
[]
["ID",10]
["FactorTriggeredID","**Deleted**"]
["OriginNodeID","**Deleted**"]
["DestinationNodeID","**Deleted**"]
[]
["ID",11]
["FactorTriggeredID","**Deleted**"]
["OriginNodeID","**Deleted**"]
["DestinationNodeID","**Deleted**"]
[]
["ID",12]
["FactorTriggeredID","**Deleted**"]
["OriginNodeID","**Deleted**"]
["DestinationNodeID","**Deleted**"]
[]
["ID",13]
["FactorTriggeredID",8]
["OriginNodeID",24]
["DestinationNodeID",23]
[]
["ID",14]
["FactorTriggeredID",8]
["OriginNodeID",25]
["DestinationNodeID",24]
[]
["ID",15]
["FactorTriggeredID",8]
["OriginNodeID",22]
["DestinationNodeID",25]
[]
["ID",22]
["FactorTriggeredID",8]
["OriginNodeID",24]
["DestinationNodeID",23]
[]
["ID",23]
["FactorTriggeredID",8]
["OriginNodeID",25]
["DestinationNodeID",24]
[]
["ID",24]
["FactorTriggeredID",8]
["OriginNodeID",22]
["DestinationNodeID",25]
[]
["ID",30]
["FactorTriggeredID",7]
["OriginNodeID",48]
["DestinationNodeID",49]
[]
["ID",31]
["FactorTriggeredID",7]
["OriginNodeID",20]
["DestinationNodeID",48]
[]
["ID",32]
["FactorTriggeredID",7]
["OriginNodeID",19]
["DestinationNodeID",20]
[]
["ID",36]
["FactorTriggeredID",2]
["OriginNodeID","(any node)"]
["DestinationNodeID",34]
[]
["ID",37]
["FactorTriggeredID",2]
["OriginNodeID","(any node)"]
["DestinationNodeID",35]
[]
["ID",38]
["FactorTriggeredID",2]
["OriginNodeID",5]
["DestinationNodeID",7]
[]
["ID",40]
["FactorTriggeredID",2]
["OriginNodeID",6]
["DestinationNodeID",7]
[]
["ID",42]
["FactorTriggeredID",2]
["OriginNodeID",7]
["DestinationNodeID",6]
[]
["ID",43]
["FactorTriggeredID",2]
["OriginNodeID",34]
["DestinationNodeID",35]
[]
["ID",44]
["FactorTriggeredID",2]
["OriginNodeID",37]
["DestinationNodeID",34]
[]
["ID",45]
["FactorTriggeredID",2]
["OriginNodeID",36]
["DestinationNodeID",34]
[]
["ID",46]
["FactorTriggeredID",2]
["OriginNodeID",35]
["DestinationNodeID",34]
[]
["ID",47]
["FactorTriggeredID",7]
["OriginNodeID",50]
["DestinationNodeID",51]
[]
["ID",48]
["FactorTriggeredID",7]
["OriginNodeID",21]
["DestinationNodeID",50]
[]
["ID",49]
["FactorTriggeredID",7]
["OriginNodeID",19]
["DestinationNodeID",21]
[]
["ID",50]
["FactorTriggeredID",12]
["OriginNodeID",56]
["DestinationNodeID",55]
[]
["ID",51]
["FactorTriggeredID",12]
["OriginNodeID",57]
["DestinationNodeID",56]
[]
["ID",52]
["FactorTriggeredID",12]
["OriginNodeID",54]
["DestinationNodeID",57]
[]
["ID",53]
["FactorTriggeredID",8]
["OriginNodeID",24]
["DestinationNodeID",23]
[]
["ID",54]
["FactorTriggeredID",8]
["OriginNodeID",25]
["DestinationNodeID",24]
[]
["ID",55]
["FactorTriggeredID",8]
["OriginNodeID",22]
["DestinationNodeID",25]

{"sheet":"_Lookup","index":5,"n_rows":66,"n_cols":2,"rows_kept":66,"cut":false,"hidden":true,"merged":[]}
["Next Available Dive Index",62]
["Begin Table",5]
["End Table",67]
[]
["Lexicographic Node Index","Dive Index"]
[337,1]
[1233,35]
[1345,37]
[1392,39]
[1435,42]
[1446,45]
[1457,38]
[1558,48]
[1838,61]
[1882,54]
[1894,49]
[1950,58]
[1951,55]
[1994,51]
[2512,28]
[2555,30]
[2566,32]
[2577,2]
[2678,34]
[2689,4]
[2736,6]
[2779,9]
[2790,12]
[2958,27]
[3002,20]
[3014,15]
[3070,24]
[3071,21]
[3114,17]
[5198,60]
[5199,57]
[5200,41]
[5242,53]
[5243,44]
[5254,47]
[6318,26]
[6319,23]
[6320,8]
[6362,19]
[6363,11]
[6374,14]
[14897,36]
[14944,40]
[14987,43]
[14998,46]
[15278,59]
[15279,56]
[15322,52]
[15334,50]
[16017,3]
[16064,29]
[16107,31]
[16118,33]
[16129,5]
[16176,7]
[16219,10]
[16230,13]
[16398,25]
[16399,22]
[16442,18]
[16454,16]

{"sheet":"_Cohort","index":6,"n_rows":148,"n_cols":35,"rows_kept":148,"cut":false,"hidden":false,"merged":[]}
[]
["Cycle Time =",0.1]
["Start Time =",0]
["Time Horizon =",20]
["Discount Rate =",{"$f":"_DiscountRate","v":0.03}]
[null,null,null,"Aseptic_Fail:","Daily Living","Daily Living","Daily Living","Daily Living","Daily Living","Daily Living","Daily Living","Daily Living","Daily Living","Daily Living","Daily Living","Daily Living","Daily Living","Daily Living","Daily Living","Daily Living","Daily Living","Daily Living","Daily Living","Daily Living","Daily Living","Daily Living","Daily Living","Daily Living","Daily Living","Daily Living","Daily Living","Daily Living","Daily Living","Terminal Node"]
[null,null,null,"Infection_Fail:","Daily Living","Daily Living","Daily Living","Daily Living","Daily Living","Daily Living","Daily Living","Daily Living","Daily Living","Daily Living","Daily Living","Daily Living","Daily Living","Daily Living","Daily Living","Daily Living","Daily Living","Daily Living","Daily Living","Daily Living","Daily Living","Daily Living","Daily Living","Daily Living","Daily Living","Daily Living","Daily Living","Daily Living","Daily Living"]
[null,null,null,"THA_Decision:","(no name)","THA","THA","THA","THA","THA","THA","THA","THA","THA","THA","THA","THA","THA","Consrv Mgmt","Consrv Mgmt","Consrv Mgmt","Consrv Mgmt","Consrv Mgmt","Consrv Mgmt","Consrv Mgmt","Consrv Mgmt","Consrv Mgmt","Consrv Mgmt","Consrv Mgmt","Consrv Mgmt","Consrv Mgmt","Consrv Mgmt","Consrv Mgmt"]
[null,null,null,"ACR_Status:","ACR III (aseptic)","ACR I (aseptic)","ACR II (aseptic)","ACR II (aseptic)","ACR II (aseptic)","ACR II (aseptic)","ACR III (aseptic)","ACR III (aseptic)","ACR IV (septic history)","ACR IV (septic history)","ACR IV (septic history)","ACR III (septic history)","ACR III (septic history)","ACR III (septic history)","ACR II (aseptic)","ACR II (aseptic)","ACR II (aseptic)","ACR III (aseptic)","ACR III (aseptic)","ACR IV (aseptic)","ACR IV (aseptic)","ACR IV (aseptic)","ACR IV (aseptic)","ACR IV (septic history)","ACR IV (septic history)","ACR IV (septic history)","ACR III (septic history)","ACR III (septic history)","ACR III (septic history)"]
[null,null,null,"Mortality:","Alive","Alive","Alive","Alive","Alive","Alive","Alive","Alive","Alive","Alive","Alive","Alive","Alive","Alive","Alive","Alive","Alive","Alive","Alive","Alive","Alive","Alive","Alive","Alive","Alive","Alive","Alive","Alive","Alive"]
[null,null,null,"Last_Surg:","Initial THA","Initial THA","Initial THA","Aseptic Revision 1","Aseptic Revision 2","Aseptic Revision 3","Initial THA","Aseptic Revision 3","Aseptic Revision 1","Aseptic Revision 2","Aseptic Revision 3","Aseptic Revision 1","Aseptic Revision 1","Aseptic Revision 2","Aseptic Revision 1","Aseptic Revision 2","Aseptic Revision 3","Initial THA","Aseptic Revision 3","Initial THA","Aseptic Revision 1","Aseptic Revision 2","Aseptic Revision 3","Aseptic Revision 1","Aseptic Revision 2","Aseptic Revision 3","Aseptic Revision 1","Aseptic Revision 1","Aseptic Revision 2"]
[null,null,null,"Aseptic_Ct:","0","0","0","1","2","3","0","3","1","2","3","1","1","2","1","2","3","0","3","0","1","2","3","1","2","3","1","1","2"]
[null,null,null,"Revision_Ct:","0","0","0","1","2","3","0","3","3","3","3","3","2","3","1","2","3","0","3","0","1","2","3","3","3","3","3","2","3"]
[null,null,null,"Chance/Decision?",1,0,0,0,0,0,0,0,0,0,0,0,0,0,0,0,0,0,0,0,0,0,0,0,0,0,0,0,0]
[]
[null,null,null,"Initial Cohort =",1]
[]
[null,null,null,"Time","Counts"]
[null,null,null,{"$f":"IF(_R,_tI,IF(_t>_tF,_tNw,D52))","v":0.5},{"$f":"IF(_R,E16,IF(_tNw>=_tF,E19,E52))","v":0},{"$f":"IF(_R,F16,IF(_tNw>=_tF,F19,F52))","v":0.68645264636133196},{"$f":"IF(_R,G16,IF(_tNw>=_tF,G19,G52))","v":0.19875020941419413},{"$f":"IF(_R,H16,IF(_tNw>=_tF,H19,H52))","v":3.2738151744950502E-3},{"$f":"IF(_R,I16,IF(_tNw>=_tF,I19,I52))","v":8.7502339429746485E-4},{"$f":"IF(_R,J16,IF(_tNw>=_tF,J19,J52))","v":4.1094563159292262E-4},{"$f":"IF(_R,K16,IF(_tNw>=_tF,K19,K52))","v":4.8923128471186239E-2},{"$f":"IF(_R,L16,IF(_tNw>=_tF,L19,L52))","v":7.8079320977065533E-5},{"$f":"IF(_R,M16,IF(_tNw>=_tF,M19,M52))","v":6.1467741093001742E-7},{"$f":"IF(_R,N16,IF(_tNw>=_tF,N19,N52))","v":1.3652065757509833E-6},{"$f":"IF(_R,O16,IF(_tNw>=_tF,O19,O52))","v":4.8789666735641798E-6},{"$f":"IF(_R,P16,IF(_tNw>=_tF,P19,P52))","v":2.1738732081751853E-6},{"$f":"IF(_R,Q16,IF(_tNw>=_tF,Q19,Q52))","v":1.0201168088470281E-5},{"$f":"IF(_R,R16,IF(_tNw>=_tF,R19,R52))","v":4.7484204384626765E-6},{"$f":"IF(_R,S16,IF(_tNw>=_tF,S19,S52))","v":0},{"$f":"IF(_R,T16,IF(_tNw>=_tF,T19,T52))","v":0},{"$f":"IF(_R,U16,IF(_tNw>=_tF,U19,U52))","v":0},{"$f":"IF(_R,V16,IF(_tNw>=_tF,V19,V52))","v":0},{"$f":"IF(_R,W16,IF(_tNw>=_tF,W19,W52))","v":0},{"$f":"IF(_R,X16,IF(_tNw>=_tF,X19,X52))","v":0},{"$f":"IF(_R,Y16,IF(_tNw>=_tF,Y19,Y52))","v":0},{"$f":"IF(_R,Z16,IF(_tNw>=_tF,Z19,Z52))","v":0},{"$f":"IF(_R,AA16,IF(_tNw>=_tF,AA19,AA52))","v":0},{"$f":"IF(_R,AB16,IF(_tNw>=_tF,AB19,AB52))","v":0},{"$f":"IF(_R,AC16,IF(_tNw>=_tF,AC19,AC52))","v":0},{"$f":"IF(_R,AD16,IF(_tNw>=_tF,AD19,AD52))","v":0},{"$f":"IF(_R,AE16,IF(_tNw>=_tF,AE19,AE52))","v":0},{"$f":"IF(_R,AF16,IF(_tNw>=_tF,AF19,AF52))","v":0},{"$f":"IF(_R,AG16,IF(_tNw>=_tF,AG19,AG52))","v":0},{"$f":"IF(_R,AH16,IF(_tNw>=_tF,AH19,AH52))","v":6.1212169919529845E-2},{"$f":"(SUMPRODUCT(E14:AI14,E19:AI19) > 0)","v":false}]
[null,null,"Transition Counts:"," Daily Living / Daily Living / (no name) / ACR III (aseptic) / Alive / Initial THA / 0 / 0 "," "]
[null,null,null," Daily Living / Daily Living / THA / ACR I (aseptic) / Alive / Initial THA / 0 / 0 ",{"$f":"dTHA*(1-pSurgMort)*pSuccess","v":0.73486088379705405}]
[null,null,null," Daily Living / Daily Living / THA / ACR II (aseptic) / Alive / Initial THA / 0 / 0 ",{"$f":"dTHA*(1-pSurgMort)*pFair","v":0.21276595744680851}]
[null,null,null," Daily Living / Daily Living / THA / ACR II (aseptic) / Alive / Aseptic Revision 1 / 1 / 1 "," ",{"$f":"[1]!xPr(rAsepFail InitialTHA*_dT)*(1-pASurgMort)*pAsepFair Rev1_","v":6.9847997010094804E-4},{"$f":"[1]!xPr(rAsepFail InitialTHA*_dT)*(1-pASurgMort)*pAsepFair Rev1_","v":6.9847997010094804E-4},null,null,null,{"$f":"[1]!xPr(rAsepFail InitialTHA*_dT)*(1-pASurgMort)*pAsepFair Rev1_","v":6.9847997010094804E-4}]
[null,null,null," Daily Living / Daily Living / THA / ACR II (aseptic) / Alive / Aseptic Revision 2 / 2 / 2 "," ",{"$f":"[1]!xPr(rAsepFail InitialTHA*_dT)*(1-pASurgMort)*pAsepFail Rev1_*(1-pASurgMort)*pAsepFair Rev2_","v":1.8402618945592982E-4},{"$f":"[1]!xPr(rAsepFail InitialTHA*_dT)*(1-pASurgMort)*pAsepFail Rev1_*(1-pASurgMort)*pAsepFair Rev2_","v":1.8402618945592982E-4},{"$f":"[1]!xPr(rAsepFail AsepRev1*_dT)*(1-pASurgMort)*pAsepFair Rev2_","v":2.5417575403545774E-3},null,null,{"$f":"[1]!xPr(rAsepFail InitialTHA*_dT)*(1-pASurgMort)*pAsepFail Rev1_*(1-pASurgMort)*pAsepFair Rev2_","v":1.8402618945592982E-4}]
[null,null,null," Daily Living / Daily Living / THA / ACR II (aseptic) / Alive / Aseptic Revision 3 / 3 / 3 "," ",{"$f":"[1]!xPr(rAsepFail InitialTHA*_dT)*(1-pASurgMort)*pAsepFail Rev1_*(1-pASurgMort)*pAsepFail Rev2_*(1-pASurgMort)*pAsepFair Rev3_","v":8.5982837524709502E-5},{"$f":"[1]!xPr(rAsepFail InitialTHA*_dT)*(1-pASurgMort)*pAsepFail Rev1_*(1-pASurgMort)*pAsepFail Rev2_*(1-pASurgMort)*pAsepFair Rev3_","v":8.5982837524709502E-5},{"$f":"[1]!xPr(rAsepFail AsepRev1*_dT)*(1-pASurgMort)*pAsepFail Rev2_*(1-pASurgMort)*pAsepFair Rev3_","v":1.1875892570815316E-3},{"$f":"[1]!xPr(rAsepFail AsepRev2*_dT)*(1-pASurgMort)*pAsepFair Rev3_","v":4.2237176208256011E-3},null,{"$f":"[1]!xPr(rAsepFail InitialTHA*_dT)*(1-pASurgMort)*pAsepFail Rev1_*(1-pASurgMort)*pAsepFail Rev2_*(1-pASurgMort)*pAsepFair Rev3_","v":8.5982837524709502E-5}]
[null,null,null," Daily Living / Daily Living / THA / ACR III (aseptic) / Alive / Initial THA / 0 / 0 ",{"$f":"dTHA*(1-pSurgMort)*pFailure","v":5.2373158756137482E-2}]
[null,null,null," Daily Living / Daily Living / THA / ACR III (aseptic) / Alive / Aseptic Revision 3 / 3 / 3 "," ",{"$f":"[1]!xPr(rAsepFail InitialTHA*_dT)*(1-pASurgMort)*pAsepFail Rev1_*(1-pASurgMort)*pAsepFail Rev2_*(1-pASurgMort)*pAsepFail Rev3_","v":1.4330472920784917E-5},{"$f":"[1]!xPr(rAsepFail InitialTHA*_dT)*(1-pASurgMort)*pAsepFail Rev1_*(1-pASurgMort)*pAsepFail Rev2_*(1-pASurgMort)*pAsepFail Rev3_","v":1.4330472920784917E-5},{"$f":"[1]!xPr(rAsepFail AsepRev1*_dT)*(1-pASurgMort)*pAsepFail Rev2_*(1-pASurgMort)*pAsepFail Rev3_","v":1.9793154284692194E-4},{"$f":"[1]!xPr(rAsepFail AsepRev2*_dT)*(1-pASurgMort)*pAsepFail Rev3_","v":7.0395293680426685E-4},{"$f":"[1]!xPr(rAsepFail AsepRev3*_dT)","v":9.9501662508318933E-3},{"$f":"[1]!xPr(rAsepFail InitialTHA*_dT)*(1-pASurgMort)*pAsepFail Rev1_*(1-pASurgMort)*pAsepFail Rev2_*(1-pASurgMort)*pAsepFail Rev3_","v":1.4330472920784917E-5},{"$f":"[1]!xPr(rAsepFail AsepRev3*_dT)","v":9.9501662508318933E-3}]
[null,null,null," Daily Living / Daily Living / THA / ACR IV (septic history) / Alive / Aseptic Revision 1 / 1 / 3 "," ",null,null,{"$f":"[1]!xPr(rInfecFail AsepRev1*_dT)*(1-pInfecMort)*pInfecFail*(1-pInfecMort)*pInfecFail","v":8.9407604013571547E-5},null,null,null,null,{"$f":"[1]!xPr(rAsepFail AsepRev1*_dT)+[1]!xPr(rInfecFail AsepRev1*_dT)","v":5.9900119886754366E-3},null,null,{"$f":"[1]!xPr(rAsepFail AsepRev1*_dT)+[1]!xPr(rInfecFail AsepRev1*_dT)","v":5.9900119886754366E-3},{"$f":"[1]!xPr(rInfecFail AsepRev1*_dT)*(1-pInfecMort)*pInfecFail","v":4.226541280641564E-4}]
[null,null,null," Daily Living / Daily Living / THA / ACR IV (septic history) / Alive / Aseptic Revision 2 / 2 / 3 "," ",null,null,null,{"$f":"[1]!xPr(rInfecFail AsepRev2*_dT)*(1-pInfecMort)*pInfecFail","v":7.3909045260454572E-4},null,null,null,null,{"$f":"[1]!xPr(rAsepFail AsepRev2*_dT)+[1]!xPr(rInfecFail AsepRev2*_dT)","v":8.4814029469028052E-3},null,null,{"$f":"[1]!xPr(rAsepFail AsepRev1*_dT)*(1-pASurgMort)*pAsepFail Rev2_","v":1.4023489877818358E-3},{"$f":"[1]!xPr(rAsepFail AsepRev2*_dT)+[1]!xPr(rInfecFail AsepRev2*_dT)","v":8.4814029469028052E-3}]
[null,null,null," Daily Living / Daily Living / THA / ACR IV (septic history) / Alive / Aseptic Revision 3 / 3 / 3 "," ",null,null,null,null,{"$f":"[1]!xPr(rInfecFail AsepRev3*_dT)","v":4.9875208073176802E-3},null,{"$f":"[1]!xPr(rInfecFail AsepRev3*_dT)","v":4.9875208073176802E-3},null,null,{"$f":"[1]!xPr(rAsepFail AsepRev3*_dT)+[1]!xPr(rInfecFail AsepRev3*_dT)","v":1.4937687058149574E-2}]
[null,null,null," Daily Living / Daily Living / THA / ACR III (septic history) / Alive / Aseptic Revision 1 / 1 / 3 "," ",null,null,{"$f":"[1]!xPr(rInfecFail AsepRev1*_dT)*(1-pInfecMort)*pInfecFail*(1-pInfecMort)*pInfecFair","v":3.2511856004935108E-4},null,null,null,null,null,null,null,null,{"$f":"[1]!xPr(rInfecFail AsepRev1*_dT)*(1-pInfecMort)*pInfecFair","v":1.5369241020514776E-3}]
[null,null,null," Daily Living / Daily Living / THA / ACR III (septic history) / Alive / Aseptic Revision 1 / 1 / 2 "," ",null,null,{"$f":"[1]!xPr(rInfecFail AsepRev1*_dT)*(1-pInfecMort)*pInfecFair","v":1.5369241020514776E-3}]
[null,null,null," Daily Living / Daily Living / THA / ACR III (septic history) / Alive / Aseptic Revision 2 / 2 / 3 "," ",null,null,null,{"$f":"[1]!xPr(rInfecFail AsepRev2*_dT)*(1-pInfecMort)*pInfecFair","v":2.6876016458347112E-3},null,null,null,null,null,null,null,{"$f":"[1]!xPr(rAsepFail AsepRev1*_dT)*(1-pASurgMort)*pAsepFair Rev2_","v":2.5417575403545774E-3}]
[null,null,null," Daily Living / Daily Living / Consrv Mgmt / ACR II (aseptic) / Alive / Aseptic Revision 1 / 1 / 1 "," ",null,null,null,null,null,null,null,null,null,null,null,null,null,null,null,null,{"$f":"[1]!xPr(rAsepFail InitialTHA*_dT)*(1-pASurgMort)*pAsepFair Rev1_","v":6.9847997010094804E-4}]
[null,null,null," Daily Living / Daily Living / Consrv Mgmt / ACR II (aseptic) / Alive / Aseptic Revision 2 / 2 / 2 "," ",null,null,null,null,null,null,null,null,null,null,null,null,null,{"$f":"[1]!xPr(rAsepFail AsepRev1*_dT)*(1-pASurgMort)*pAsepFair Rev2_","v":2.5417575403545774E-3},null,null,{"$f":"[1]!xPr(rAsepFail InitialTHA*_dT)*(1-pASurgMort)*pAsepFail Rev1_*(1-pASurgMort)*pAsepFair Rev2_","v":1.8402618945592982E-4}]
[null,null,null," Daily Living / Daily Living / Consrv Mgmt / ACR II (aseptic) / Alive / Aseptic Revision 3 / 3 / 3 "," ",null,null,null,null,null,null,null,null,null,null,null,null,null,{"$f":"[1]!xPr(rAsepFail AsepRev1*_dT)*(1-pASurgMort)*pAsepFail Rev2_*(1-pASurgMort)*pAsepFair Rev3_","v":1.1875892570815316E-3},{"$f":"[1]!xPr(rAsepFail AsepRev2*_dT)*(1-pASurgMort)*pAsepFair Rev3_","v":4.2237176208256011E-3},null,{"$f":"[1]!xPr(rAsepFail InitialTHA*_dT)*(1-pASurgMort)*pAsepFail Rev1_*(1-pASurgMort)*pAsepFail Rev2_*(1-pASurgMort)*pAsepFair Rev3_","v":8.5982837524709502E-5}]
[null,null,null," Daily Living / Daily Living / Consrv Mgmt / ACR III (aseptic) / Alive / Initial THA / 0 / 0 ",{"$f":"(1-dTHA)","v":0}]
[null,null,null," Daily Living / Daily Living / Consrv Mgmt / ACR III (aseptic) / Alive / Aseptic Revision 3 / 3 / 3 "," ",null,null,null,null,null,null,null,null,null,null,null,null,null,{"$f":"[1]!xPr(rAsepFail AsepRev1*_dT)*(1-pASurgMort)*pAsepFail Rev2_*(1-pASurgMort)*pAsepFail Rev3_","v":1.9793154284692194E-4},{"$f":"[1]!xPr(rAsepFail AsepRev2*_dT)*(1-pASurgMort)*pAsepFail Rev3_","v":7.0395293680426685E-4},{"$f":"[1]!xPr(rAsepFail AsepRev3*_dT)","v":9.9501662508318933E-3},{"$f":"[1]!xPr(rAsepFail InitialTHA*_dT)*(1-pASurgMort)*pAsepFail Rev1_*(1-pASurgMort)*pAsepFail Rev2_*(1-pASurgMort)*pAsepFail Rev3_","v":1.4330472920784917E-5},{"$f":"[1]!xPr(rAsepFail AsepRev3*_dT)","v":9.9501662508318933E-3}]
[null,null,null," Daily Living / Daily Living / Consrv Mgmt / ACR IV (aseptic) / Alive / Initial THA / 0 / 0 "," ",null,null,null,null,null,null,null,null,null,null,null,null,null,null,null,null,{"$f":"[1]!xPr(rNatural*_dT)","v":3.2912751370390847E-3}]
[null,null,null," Daily Living / Daily Living / Consrv Mgmt / ACR IV (aseptic) / Alive / Aseptic Revision 1 / 1 / 1 "," ",null,null,null,null,null,null,null,null,null,null,null,null,null,null,null,null,null,null,{"$f":"[1]!xPr(rAsepFail InitialTHA*_dT)*(1-pASurgMort)*pAsepFair Rev1_","v":6.9847997010094804E-4}]
[null,null,null," Daily Living / Daily Living / Consrv Mgmt / ACR IV (aseptic) / Alive / Aseptic Revision 2 / 2 / 2 "," ",null,null,null,null,null,null,null,null,null,null,null,null,null,null,null,null,null,null,{"$f":"[1]!xPr(rAsepFail InitialTHA*_dT)*(1-pASurgMort)*pAsepFail Rev1_*(1-pASurgMort)*pAsepFair Rev2_","v":1.8402618945592982E-4},{"$f":"[1]!xPr(rAsepFail AsepRev1*_dT)*(1-pASurgMort)*pAsepFair Rev2_","v":2.5417575403545774E-3}]
[null,null,null," Daily Living / Daily Living / Consrv Mgmt / ACR IV (aseptic) / Alive / Aseptic Revision 3 / 3 / 3 "," ",null,null,null,null,null,null,null,null,null,null,null,null,null,null,null,null,null,{"$f":"[1]!xPr(rNatural*_dT)","v":3.2912751370390847E-3},{"$f":"[1]!xPr(rAsepFail InitialTHA*_dT)*((1-pASurgMort)*pAsepFail Rev1_*(1-pASurgMort)*pAsepFail Rev2_*(1-pASurgMort)*pAsepFair Rev3_+(1-pASurgMort)*pAsepFail Rev1_*(1-pASurgMort)*pAsepFail Rev2_*(1-pASurgMort)*pAsepFail Rev3_)","v":1.0031331044549441E-4},{"$f":"[1]!xPr(rAsepFail AsepRev1*_dT)*((1-pASurgMort)*pAsepFail Rev2_*(1-pASurgMort)*pAsepFair Rev3_+(1-pASurgMort)*pAsepFail Rev2_*(1-pASurgMort)*pAsepFail Rev3_)","v":1.3855207999284534E-3},{"$f":"[1]!xPr(rAsepFail AsepRev2*_dT)*((1-pASurgMort)*pAsepFair Rev3_+(1-pASurgMort)*pAsepFail Rev3_)","v":4.9276705576298671E-3},{"$f":"[1]!xPr(rAsepFail AsepRev3*_dT)","v":9.9501662508318933E-3}]
[null,null,null," Daily Living / Daily Living / Consrv Mgmt / ACR IV (septic history) / Alive / Aseptic Revision 1 / 1 / 3 "," ",null,null,null,null,null,null,null,null,null,null,null,null,null,{"$f":"[1]!xPr(rInfecFail AsepRev1*_dT)*(1-pInfecMort)*pInfecFail*(1-pInfecMort)*pInfecFail","v":8.9407604013571547E-5},null,null,null,null,null,{"$f":"[1]!xPr(rInfecFail AsepRev1*_dT)*(1-pInfecMort)*pInfecFail*(1-pInfecMort)*pInfecFail","v":8.9407604013571547E-5},null,null,{"$f":"[1]!xPr(rAsepFail AsepRev1*_dT)+[1]!xPr(rInfecFail AsepRev1*_dT)","v":5.9900119886754366E-3},null,null,{"$f":"[1]!xPr(rAsepFail AsepRev1*_dT)+[1]!xPr(rInfecFail AsepRev1*_dT)","v":5.9900119886754366E-3},{"$f":"[1]!xPr(rInfecFail AsepRev1*_dT)*(1-pInfecMort)*pInfecFail","v":4.226541280641564E-4}]
[null,null,null," Daily Living / Daily Living / Consrv Mgmt / ACR IV (septic history) / Alive / Aseptic Revision 2 / 2 / 3 "," ",null,null,null,null,null,null,null,null,null,null,null,null,null,null,{"$f":"[1]!xPr(rInfecFail AsepRev2*_dT)*(1-pInfecMort)*pInfecFail","v":7.3909045260454572E-4},null,null,null,null,null,{"$f":"[1]!xPr(rInfecFail AsepRev2*_dT)*(1-pInfecMort)*pInfecFail","v":7.3909045260454572E-4},null,null,{"$f":"[1]!xPr(rAsepFail AsepRev2*_dT)+[1]!xPr(rInfecFail AsepRev2*_dT)","v":8.4814029469028052E-3},null,null,{"$f":"[1]!xPr(rAsepFail AsepRev1*_dT)*(1-pASurgMort)*pAsepFail Rev2_","v":1.4023489877818358E-3},{"$f":"[1]!xPr(rAsepFail AsepRev2*_dT)+[1]!xPr(rInfecFail AsepRev2*_dT)","v":8.4814029469028052E-3}]
[null,null,null," Daily Living / Daily Living / Consrv Mgmt / ACR IV (septic history) / Alive / Aseptic Revision 3 / 3 / 3 "," ",null,null,null,null,null,null,null,null,null,null,null,null,null,null,null,{"$f":"[1]!xPr(rInfecFail AsepRev3*_dT)","v":4.9875208073176802E-3},null,{"$f":"[1]!xPr(rInfecFail AsepRev3*_dT)","v":4.9875208073176802E-3},null,null,null,{"$f":"[1]!xPr(rInfecFail AsepRev3*_dT)","v":4.9875208073176802E-3},null,null,{"$f":"[1]!xPr(rAsepFail AsepRev3*_dT)+[1]!xPr(rInfecFail AsepRev3*_dT)","v":1.4937687058149574E-2}]
[null,null,null," Daily Living / Daily Living / Consrv Mgmt / ACR III (septic history) / Alive / Aseptic Revision 1 / 1 / 3 "," ",null,null,null,null,null,null,null,null,null,null,null,null,null,{"$f":"[1]!xPr(rInfecFail AsepRev1*_dT)*(1-pInfecMort)*pInfecFail*(1-pInfecMort)*pInfecFair","v":3.2511856004935108E-4},null,null,null,null,null,{"$f":"[1]!xPr(rInfecFail AsepRev1*_dT)*(1-pInfecMort)*pInfecFail*(1-pInfecMort)*pInfecFair","v":3.2511856004935108E-4},null,null,null,null,null,null,{"$f":"[1]!xPr(rInfecFail AsepRev1*_dT)*(1-pInfecMort)*pInfecFair","v":1.5369241020514776E-3}]
[null,null,null," Daily Living / Daily Living / Consrv Mgmt / ACR III (septic history) / Alive / Aseptic Revision 1 / 1 / 2 "," ",null,null,null,null,null,null,null,null,null,null,null,null,null,{"$f":"[1]!xPr(rInfecFail AsepRev1*_dT)*(1-pInfecMort)*pInfecFair","v":1.5369241020514776E-3},null,null,null,null,null,{"$f":"[1]!xPr(rInfecFail AsepRev1*_dT)*(1-pInfecMort)*pInfecFair","v":1.5369241020514776E-3}]
[null,null,null," Daily Living / Daily Living / Consrv Mgmt / ACR III (septic history) / Alive / Aseptic Revision 2 / 2 / 3 "," ",null,null,null,null,null,null,null,null,null,null,null,null,null,null,{"$f":"[1]!xPr(rInfecFail AsepRev2*_dT)*(1-pInfecMort)*pInfecFair","v":2.6876016458347112E-3},null,null,null,null,null,{"$f":"[1]!xPr(rInfecFail AsepRev2*_dT)*(1-pInfecMort)*pInfecFair","v":2.6876016458347112E-3},null,null,null,null,null,{"$f":"[1]!xPr(rAsepFail AsepRev1*_dT)*(1-pASurgMort)*pAsepFair Rev2_","v":2.5417575403545774E-3}]
[null,null,null,"Terminal Node",{"$f":"dTHA*pSurgMort","v":0},{"$f":"[1]!xPr(rAsepFail InitialTHA*_dT)*(pASurgMort+(1-pASurgMort)*pAsepFail Rev1_*pASurgMort+(1-pASurgMort)*pAsepFail Rev1_*(1-pASurgMort)*pAsepFail Rev2_*pASurgMort)+[1]!xPr([1]!rMortUS(_t+Age,Gender)*_dT)","v":1.2553521628530816E-2},{"$f":"[1]!xPr(rAsepFail InitialTHA*_dT)*(pASurgMort+(1-pASurgMort)*pAsepFail Rev1_*pASurgMort+(1-pASurgMort)*pAsepFail Rev1_*(1-pASurgMort)*pAsepFail Rev2_*pASurgMort)+[1]!xPr([1]!rMortUS(_t+Age,Gender)*_dT)","v":1.2553521628530816E-2},{"$f":"[1]!xPr(rAsepFail AsepRev1*_dT)*(pASurgMort+(1-pASurgMort)*pAsepFail Rev2_*pASurgMort)+[1]!xPr(rInfecFail AsepRev1*_dT)*(pInfecMort+(1-pInfecMort)*pInfecFail*pInfecMort)+[1]!xPr([1]!rMortUS(_t+Age,Gender)*_dT)","v":1.2648124314186215E-2},{"$f":"[1]!xPr(rAsepFail AsepRev2*_dT)*pASurgMort+[1]!xPr(rInfecFail AsepRev2*_dT)*pInfecMort+[1]!xPr([1]!rMortUS(_t+Age,Gender)*_dT)","v":1.2663881222741891E-2},{"$f":"[1]!xPr([1]!rMortUS(_t+Age,Gender)*_dT)","v":1.2536840931908211E-2},{"$f":"[1]!xPr(rAsepFail InitialTHA*_dT)*(pASurgMort+(1-pASurgMort)*pAsepFail Rev1_*pASurgMort+(1-pASurgMort)*pAsepFail Rev1_*(1-pASurgMort)*pAsepFail Rev2_*pASurgMort)+[1]!xPr([1]!rMortUS(_t+Age,Gender)*_dT)","v":1.2553521628530816E-2},{"$f":"[1]!xPr([1]!rMortUS(_t+Age,Gender)*_dT)","v":1.2536840931908211E-2},{"$f":"[1]!xPr([1]!rMortUS(_t+Age,Gender)*_dT)","v":1.2536840931908211E-2},{"$f":"[1]!xPr([1]!rMortUS(_t+Age,Gender)*_dT)","v":1.2536840931908211E-2},{"$f":"[1]!xPr([1]!rMortUS(_t+Age,Gender)*_dT)","v":1.2536840931908211E-2},{"$f":"[1]!xPr([1]!rMortUS(_t+Age,Gender)*_dT)","v":1.2536840931908211E-2},{"$f":"[1]!xPr(rAsepFail AsepRev1*_dT)*pASurgMort+[1]!xPr(rInfecFail AsepRev1*_dT)*pInfecMort+[1]!xPr([1]!rMortUS(_t+Age,Gender)*_dT)","v":1.26231681623316E-2},{"$f":"[1]!xPr([1]!rMortUS(_t+Age,Gender)*_dT)","v":1.2536840931908211E-2},{"$f":"[1]!xPr(rAsepFail AsepRev1*_dT)*(pASurgMort+(1-pASurgMort)*pAsepFail Rev2_*pASurgMort)+[1]!xPr(rInfecFail AsepRev1*_dT)*(pInfecMort+(1-pInfecMort)*pInfecFail*pInfecMort)+[1]!xPr([1]!rMortUS(_t+Age,Gender)*_dT)","v":1.2648124314186215E-2},{"$f":"[1]!xPr(rAsepFail AsepRev2*_dT)*pASurgMort+[1]!xPr(rInfecFail AsepRev2*_dT)*pInfecMort+[1]!xPr([1]!rMortUS(_t+Age,Gender)*_dT)","v":1.2663881222741891E-2},{"$f":"[1]!xPr([1]!rMortUS(_t+Age,Gender)*_dT)","v":1.2536840931908211E-2},{"$f":"[1]!xPr(rAsepFail InitialTHA*_dT)*(pASurgMort+(1-pASurgMort)*pAsepFail Rev1_*pASurgMort+(1-pASurgMort)*pAsepFail Rev1_*(1-pASurgMort)*pAsepFail Rev2_*pASurgMort)+[1]!xPr([1]!rMortUS(_t+Age,Gender)*_dT)","v":1.2553521628530816E-2},{"$f":"[1]!xPr([1]!rMortUS(_t+Age,Gender)*_dT)","v":1.2536840931908211E-2},{"$f":"[1]!xPr(rAsepFail InitialTHA*_dT)*(pASurgMort+(1-pASurgMort)*pAsepFail Rev1_*pASurgMort+(1-pASurgMort)*pAsepFail Rev1_*(1-pASurgMort)*pAsepFail Rev2_*pASurgMort)+[1]!xPr([1]!rMortUS(_t+Age,Gender)*_dT)","v":1.2553521628530816E-2},{"$f":"[1]!xPr(rAsepFail AsepRev1*_dT)*(pASurgMort+(1-pASurgMort)*pAsepFail Rev2_*pASurgMort)+[1]!xPr(rInfecFail AsepRev1*_dT)*(pInfecMort+(1-pInfecMort)*pInfecFail*pInfecMort)+[1]!xPr([1]!rMortUS(_t+Age,Gender)*_dT)","v":1.2648124314186215E-2},{"$f":"[1]!xPr(rAsepFail AsepRev2*_dT)*pASurgMort+[1]!xPr(rInfecFail AsepRev2*_dT)*pInfecMort+[1]!xPr([1]!rMortUS(_t+Age,Gender)*_dT)","v":1.2663881222741891E-2},{"$f":"[1]!xPr([1]!rMortUS(_t+Age,Gender)*_dT)","v":1.2536840931908211E-2},{"$f":"[1]!xPr([1]!rMortUS(_t+Age,Gender)*_dT)","v":1.2536840931908211E-2},{"$f":"[1]!xPr([1]!rMortUS(_t+Age,Gender)*_dT)","v":1.2536840931908211E-2},{"$f":"[1]!xPr([1]!rMortUS(_t+Age,Gender)*_dT)","v":1.2536840931908211E-2},{"$f":"[1]!xPr([1]!rMortUS(_t+Age,Gender)*_dT)","v":1.2536840931908211E-2},{"$f":"[1]!xPr(rAsepFail AsepRev1*_dT)*pASurgMort+[1]!xPr(rInfecFail AsepRev1*_dT)*pInfecMort+[1]!xPr([1]!rMortUS(_t+Age,Gender)*_dT)","v":1.26231681623316E-2},{"$f":"[1]!xPr([1]!rMortUS(_t+Age,Gender)*_dT)","v":1.2536840931908211E-2}]
[null,null,null,"Entering Counts",{"$f":"SUMPRODUCT(_tR,E20:AH20)","v":0},{"$f":"SUMPRODUCT(_tR,E21:AH21)","v":0},{"$f":"SUMPRODUCT(_tR,E22:AH22)","v":0},{"$f":"SUMPRODUCT(_tR,E23:AH23)","v":6.524682895471623E-4},{"$f":"SUMPRODUCT(_tR,E24:AH24)","v":1.8022488975819243E-4},{"$f":"SUMPRODUCT(_tR,E25:AH25)","v":8.7902602191124074E-5},{"$f":"SUMPRODUCT(_tR,E26:AH26)","v":0},{"$f":"SUMPRODUCT(_tR,E27:AH27)","v":1.9516313277397239E-5},{"$f":"SUMPRODUCT(_tR,E28:AH28)","v":3.1371898817801182E-7},{"$f":"SUMPRODUCT(_tR,E29:AH29)","v":7.1287916844855425E-7},{"$f":"SUMPRODUCT(_tR,E30:AH30)","v":2.5119026035772003E-6},{"$f":"SUMPRODUCT(_tR,E31:AH31)","v":1.0800564965037942E-6},{"$f":"SUMPRODUCT(_tR,E32:AH32)","v":5.031605447343306E-6},{"$f":"SUMPRODUCT(_tR,E33:AH33)","v":2.3776432105670362E-6},{"$f":"SUMPRODUCT(_tR,E34:AH34)","v":0},{"$f":"SUMPRODUCT(_tR,E35:AH35)","v":0},{"$f":"SUMPRODUCT(_tR,E36:AH36)","v":0},{"$f":"SUMPRODUCT(_tR,E37:AH37)","v":0},{"$f":"SUMPRODUCT(_tR,E38:AH38)","v":0},{"$f":"SUMPRODUCT(_tR,E39:AH39)","v":0},{"$f":"SUMPRODUCT(_tR,E40:AH40)","v":0},{"$f":"SUMPRODUCT(_tR,E41:AH41)","v":0},{"$f":"SUMPRODUCT(_tR,E42:AH42)","v":0},{"$f":"SUMPRODUCT(_tR,E43:AH43)","v":0},{"$f":"SUMPRODUCT(_tR,E44:AH44)","v":0},{"$f":"SUMPRODUCT(_tR,E45:AH45)","v":0},{"$f":"SUMPRODUCT(_tR,E46:AH46)","v":0},{"$f":"SUMPRODUCT(_tR,E47:AH47)","v":0},{"$f":"SUMPRODUCT(_tR,E48:AH48)","v":0},{"$f":"SUMPRODUCT(_tR,E49:AH49)","v":1.1785491931771298E-2}]
[null,null,null,"Departing Counts",{"$f":" IF(_CD=1,E19,E19*SUM(E20:E49))","v":0},{"$f":" IF(_CD=1,F19,F19*SUM(F20:F49))","v":9.2920571691377674E-3},{"$f":" IF(_CD=1,G19,G19*SUM(G20:G49))","v":2.6903506280354338E-3},{"$f":" IF(_CD=1,H19,H19*SUM(H20:H49))","v":6.0653492227044684E-5},{"$f":" IF(_CD=1,I19,I19*SUM(I20:I49))","v":1.8391455101009128E-5},{"$f":" IF(_CD=1,J19,J19*SUM(J20:J49))","v":1.1290537257591728E-5},{"$f":" IF(_CD=1,K19,K19*SUM(K20:K49))","v":6.6224015459333751E-4},{"$f":" IF(_CD=1,L19,L19*SUM(L20:L49))","v":2.145192489629093E-6},{"$f":" IF(_CD=1,M19,M19*SUM(M20:M49))","v":1.1388037985905588E-8},{"$f":" IF(_CD=1,N19,N19*SUM(N20:N49))","v":2.8694244754090653E-8},{"$f":" IF(_CD=1,O19,O19*SUM(O20:O49))","v":1.3404730643539818E-7},{"$f":" IF(_CD=1,P19,P19*SUM(P20:P49))","v":4.0275029195858973E-8},{"$f":" IF(_CD=1,Q19,Q19*SUM(Q20:Q49))","v":1.8899554079324033E-7},{"$f":" IF(_CD=1,R19,R19*SUM(R20:R49))","v":9.9803458814739264E-8},{"$f":" IF(_CD=1,S19,S19*SUM(S20:S49))","v":0},{"$f":" IF(_CD=1,T19,T19*SUM(T20:T49))","v":0},{"$f":" IF(_CD=1,U19,U19*SUM(U20:U49))","v":0},{"$f":" IF(_CD=1,V19,V19*SUM(V20:V49))","v":0},{"$f":" IF(_CD=1,W19,W19*SUM(W20:W49))","v":0},{"$f":" IF(_CD=1,X19,X19*SUM(X20:X49))","v":0},{"$f":" IF(_CD=1,Y19,Y19*SUM(Y20:Y49))","v":0},{"$f":" IF(_CD=1,Z19,Z19*SUM(Z20:Z49))","v":0},{"$f":" IF(_CD=1,AA19,AA19*SUM(AA20:AA49))","v":0},{"$f":" IF(_CD=1,AB19,AB19*SUM(AB20:AB49))","v":0},{"$f":" IF(_CD=1,AC19,AC19*SUM(AC20:AC49))","v":0},{"$f":" IF(_CD=1,AD19,AD19*SUM(AD20:AD49))","v":0},{"$f":" IF(_CD=1,AE19,AE19*SUM(AE20:AE49))","v":0},{"$f":" IF(_CD=1,AF19,AF19*SUM(AF20:AF49))","v":0},{"$f":" IF(_CD=1,AG19,AG19*SUM(AG20:AG49))","v":0},{"$f":" IF(_CD=1,AH19,AH19*SUM(AH20:AH49))","v":0}]
[null,null,null,{"$f":"IF(_CP,D19,D19+_dT)","v":0.6},{"$f":"E19+E50-E51","v":0},{"$f":"F19+F50-F51","v":0.67716058919219424},{"$f":"G19+G50-G51","v":0.1960598587861587},{"$f":"H19+H50-H51","v":3.865629971815168E-3},{"$f":"I19+I50-I51","v":1.036856828954648E-3},{"$f":"J19+J50-J51","v":4.8755769652645496E-4},{"$f":"K19+K50-K51","v":4.82608883165929E-2},{"$f":"L19+L50-L51","v":9.5450441764833674E-5},{"$f":"M19+M50-M51","v":9.1700836112212364E-7},{"$f":"N19+N50-N51","v":2.049391499445447E-6},{"$f":"O19+O50-O51","v":7.256821970705982E-6},{"$f":"P19+P50-P51","v":3.2136546754831208E-6},{"$f":"Q19+Q50-Q51","v":1.5043777995020347E-5},{"$f":"R19+R50-R51","v":7.0262601902149733E-6},{"$f":"S19+S50-S51","v":0},{"$f":"T19+T50-T51","v":0},{"$f":"U19+U50-U51","v":0},{"$f":"V19+V50-V51","v":0},{"$f":"W19+W50-W51","v":0},{"$f":"X19+X50-X51","v":0},{"$f":"Y19+Y50-Y51","v":0},{"$f":"Z19+Z50-Z51","v":0},{"$f":"AA19+AA50-AA51","v":0},{"$f":"AB19+AB50-AB51","v":0},{"$f":"AC19+AC50-AC51","v":0},{"$f":"AD19+AD50-AD51","v":0},{"$f":"AE19+AE50-AE51","v":0},{"$f":"AF19+AF50-AF51","v":0},{"$f":"AG19+AG50-AG51","v":0},{"$f":"AH19+AH50-AH51","v":7.2997661851301146E-2}]
[]
[null,null,null,"Quality Coefficients (at t):",null,{"$f":"qI","v":1},{"$f":"qII","v":0.8},{"$f":"qII","v":0.8},{"$f":"qII","v":0.8},{"$f":"qII","v":0.8},{"$f":"qIII","v":0.5},{"$f":"qIII","v":0.5},{"$f":"qIV","v":0.3},{"$f":"qIV","v":0.3},{"$f":"qIV","v":0.3},{"$f":"qIII","v":0.5},{"$f":"qIII","v":0.5},{"$f":"qIII","v":0.5},{"$f":"qII","v":0.8},{"$f":"qII","v":0.8},{"$f":"qII","v":0.8},{"$f":"qIII","v":0.5},{"$f":"qIII","v":0.5},{"$f":"qIV","v":0.3},{"$f":"qIV","v":0.3},{"$f":"qIV","v":0.3},{"$f":"qIV","v":0.3},{"$f":"qIV","v":0.3},{"$f":"qIV","v":0.3},{"$f":"qIV","v":0.3},{"$f":"qIII","v":0.5},{"$f":"qIII","v":0.5},{"$f":"qIII","v":0.5}]
[null,null,null,"(at t+dt):",null,{"$f":"qI*EXP(-_dR*_dT)","v":0.997004495503373},{"$f":"qII*EXP(-_dR*_dT)","v":0.7976035964026984},{"$f":"qII*EXP(-_dR*_dT)","v":0.7976035964026984},{"$f":"qII*EXP(-_dR*_dT)","v":0.7976035964026984},{"$f":"qII*EXP(-_dR*_dT)","v":0.7976035964026984},{"$f":"qIII*EXP(-_dR*_dT)","v":0.4985022477516865},{"$f":"qIII*EXP(-_dR*_dT)","v":0.4985022477516865},{"$f":"qIV*EXP(-_dR*_dT)","v":0.2991013486510119},{"$f":"qIV*EXP(-_dR*_dT)","v":0.2991013486510119},{"$f":"qIV*EXP(-_dR*_dT)","v":0.2991013486510119},{"$f":"qIII*EXP(-_dR*_dT)","v":0.4985022477516865},{"$f":"qIII*EXP(-_dR*_dT)","v":0.4985022477516865},{"$f":"qIII*EXP(-_dR*_dT)","v":0.4985022477516865},{"$f":"qII*EXP(-_dR*_dT)","v":0.7976035964026984},{"$f":"qII*EXP(-_dR*_dT)","v":0.7976035964026984},{"$f":"qII*EXP(-_dR*_dT)","v":0.7976035964026984},{"$f":"qIII*EXP(-_dR*_dT)","v":0.4985022477516865},{"$f":"qIII*EXP(-_dR*_dT)","v":0.4985022477516865},{"$f":"qIV*EXP(-_dR*_dT)","v":0.2991013486510119},{"$f":"qIV*EXP(-_dR*_dT)","v":0.2991013486510119},{"$f":"qIV*EXP(-_dR*_dT)","v":0.2991013486510119},{"$f":"qIV*EXP(-_dR*_dT)","v":0.2991013486510119},{"$f":"qIV*EXP(-_dR*_dT)","v":0.2991013486510119},{"$f":"qIV*EXP(-_dR*_dT)","v":0.2991013486510119},{"$f":"qIV*EXP(-_dR*_dT)","v":0.2991013486510119},{"$f":"qIII*EXP(-_dR*_dT)","v":0.4985022477516865},{"$f":"qIII*EXP(-_dR*_dT)","v":0.4985022477516865},{"$f":"qIII*EXP(-_dR*_dT)","v":0.4985022477516865}]
[]
[null,null,"Transition QALY Tolls:"," Daily Living / Daily Living / THA / ACR I (aseptic) / Alive / Initial THA / 0 / 0 ",{"$f":"0","v":0}]
[null,null,null," Daily Living / Daily Living / THA / ACR II (aseptic) / Alive / Initial THA / 0 / 0 ",{"$f":"0","v":0}]
[null,null,null," Daily Living / Daily Living / THA / ACR III (aseptic) / Alive / Initial THA / 0 / 0 ",{"$f":"0","v":0}]
[null,null,null," Daily Living / Daily Living / Consrv Mgmt / ACR III (aseptic) / Alive / Initial THA / 0 / 0 ",{"$f":"0","v":0}]
[null,null,null," Aseptic Failure / Daily Living / THA / ACR III (aseptic) / Alive / Initial THA / 0 / 0 "," ",{"$f":"0","v":0},{"$f":"0","v":0},null,null,null,{"$f":"0","v":0}]
[null,null,null," Aseptic Failure / Daily Living / THA / ACR III (aseptic) / Alive / Aseptic Revision 1 / 1 / 1 "," ",null,null,{"$f":"0","v":0}]
[null,null,null," Daily Living / Infection Failure / THA / ACR IV (septic history) / Alive / Aseptic Revision 1 / 1 / 1 "," ",null,null,{"$f":"0","v":0}]
[null,null,null," Aseptic Failure / Daily Living / THA / ACR III (aseptic) / Alive / Aseptic Revision 2 / 2 / 2 "," ",null,null,null,{"$f":"0","v":0}]
[null,null,null," Daily Living / Infection Failure / THA / ACR IV (septic history) / Alive / Aseptic Revision 2 / 2 / 2 "," ",null,null,null,{"$f":"0","v":0}]
[null,null,null," Aseptic Failure / Daily Living / THA / ACR III (aseptic) / Alive / Aseptic Revision 3 / 3 / 3 "," ",null,null,null,null,{"$f":"0","v":0},null,{"$f":"0","v":0}]
[null,null,null," Daily Living / Infection Failure / THA / ACR IV (septic history) / Alive / Aseptic Revision 3 / 3 / 3 "," ",null,null,null,null,{"$f":"0","v":0},null,{"$f":"0","v":0},null,null,{"$f":"0","v":0}]
[null,null,null," Aseptic Failure / Daily Living / THA / ACR IV (septic history) / Alive / Aseptic Revision 1 / 1 / 3 "," ",null,null,null,null,null,null,null,{"$f":"0","v":0},null,null,{"$f":"0","v":0}]
[null,null,null," Daily Living / Infection Failure / THA / ACR IV (septic history) / Alive / Aseptic Revision 1 / 1 / 3 "," ",null,null,null,null,null,null,null,{"$f":"0","v":0},null,null,{"$f":"0","v":0}]
[null,null,null," Aseptic Failure / Daily Living / THA / ACR IV (septic history) / Alive / Aseptic Revision 2 / 2 / 3 "," ",null,null,null,null,null,null,null,null,{"$f":"0","v":0},null,null,null,{"$f":"0","v":0}]
[null,null,null," Daily Living / Infection Failure / THA / ACR IV (septic history) / Alive / Aseptic Revision 2 / 2 / 3 "," ",null,null,null,null,null,null,null,null,{"$f":"0","v":0},null,null,null,{"$f":"0","v":0}]
[null,null,null," Aseptic Failure / Daily Living / THA / ACR IV (septic history) / Alive / Aseptic Revision 3 / 3 / 3 "," ",null,null,null,null,null,null,null,null,null,{"$f":"0","v":0}]
[null,null,null," Aseptic Failure / Daily Living / THA / ACR IV (septic history) / Alive / Aseptic Revision 1 / 1 / 2 "," ",null,null,null,null,null,null,null,null,null,null,null,{"$f":"0","v":0}]
[null,null,null," Daily Living / Infection Failure / THA / ACR IV (septic history) / Alive / Aseptic Revision 1 / 1 / 2 "," ",null,null,null,null,null,null,null,null,null,null,null,{"$f":"0","v":0}]
[null,null,null," Aseptic Failure / Daily Living / Consrv Mgmt / ACR III (aseptic) / Alive / Aseptic Revision 1 / 1 / 1 "," ",null,null,null,null,null,null,null,null,null,null,null,null,null,{"$f":"0","v":0}]
[null,null,null," Daily Living / Infection Failure / Consrv Mgmt / ACR IV (septic history) / Alive / Aseptic Revision 1 / 1 / 1 "," ",null,null,null,null,null,null,null,null,null,null,null,null,null,{"$f":"0","v":0},null,null,null,null,null,{"$f":"0","v":0}]
[null,null,null," Aseptic Failure / Daily Living / Consrv Mgmt / ACR III (aseptic) / Alive / Aseptic Revision 2 / 2 / 2 "," ",null,null,null,null,null,null,null,null,null,null,null,null,null,null,{"$f":"0","v":0}]
[null,null,null," Daily Living / Infection Failure / Consrv Mgmt / ACR IV (septic history) / Alive / Aseptic Revision 2 / 2 / 2 "," ",null,null,null,null,null,null,null,null,null,null,null,null,null,null,{"$f":"0","v":0},null,null,null,null,null,{"$f":"0","v":0}]
[null,null,null," Aseptic Failure / Daily Living / Consrv Mgmt / ACR III (aseptic) / Alive / Aseptic Revision 3 / 3 / 3 "," ",null,null,null,null,null,null,null,null,null,null,null,null,null,null,null,{"$f":"0","v":0},null,{"$f":"0","v":0}]
[null,null,null," Daily Living / Infection Failure / Consrv Mgmt / ACR IV (septic history) / Alive / Aseptic Revision 3 / 3 / 3 "," ",null,null,null,null,null,null,null,null,null,null,null,null,null,null,null,{"$f":"0","v":0},null,{"$f":"0","v":0},null,null,null,{"$f":"0","v":0},null,null,{"$f":"0","v":0}]
[null,null,null," Aseptic Failure / Daily Living / Consrv Mgmt / ACR III (aseptic) / Alive / Initial THA / 0 / 0 "," ",null,null,null,null,null,null,null,null,null,null,null,null,null,null,null,null,{"$f":"0","v":0}]
[null,null,null," Daily Living / Daily Living / Consrv Mgmt / ACR IV (aseptic) / Alive / Initial THA / 0 / 0 "," ",null,null,null,null,null,null,null,null,null,null,null,null,null,null,null,null,{"$f":"0","v":0}]
[null,null,null," Daily Living / Daily Living / Consrv Mgmt / ACR IV (aseptic) / Alive / Aseptic Revision 3 / 3 / 3 "," ",null,null,null,null,null,null,null,null,null,null,null,null,null,null,null,null,null,{"$f":"0","v":0}]
[null,null,null," Aseptic Failure / Daily Living / Consrv Mgmt / ACR IV (aseptic) / Alive / Initial THA / 0 / 0 "," ",null,null,null,null,null,null,null,null,null,null,null,null,null,null,null,null,null,null,{"$f":"0","v":0}]
[null,null,null," Aseptic Failure / Daily Living / Consrv Mgmt / ACR IV (aseptic) / Alive / Aseptic Revision 1 / 1 / 1 "," ",null,null,null,null,null,null,null,null,null,null,null,null,null,null,null,null,null,null,null,{"$f":"0","v":0}]
[null,null,null," Aseptic Failure / Daily Living / Consrv Mgmt / ACR IV (aseptic) / Alive / Aseptic Revision 2 / 2 / 2 "," ",null,null,null,null,null,null,null,null,null,null,null,null,null,null,null,null,null,null,null,null,{"$f":"0","v":0}]
[null,null,null," Aseptic Failure / Daily Living / Consrv Mgmt / ACR IV (aseptic) / Alive / Aseptic Revision 3 / 3 / 3 "," ",null,null,null,null,null,null,null,null,null,null,null,null,null,null,null,null,null,null,null,null,null,{"$f":"0","v":0}]
[null,null,null," Aseptic Failure / Daily Living / Consrv Mgmt / ACR IV (septic history) / Alive / Aseptic Revision 1 / 1 / 3 "," ",null,null,null,null,null,null,null,null,null,null,null,null,null,null,null,null,null,null,null,null,null,null,{"$f":"0","v":0},null,null,{"$f":"0","v":0}]
[null,null,null," Daily Living / Infection Failure / Consrv Mgmt / ACR IV (septic history) / Alive / Aseptic Revision 1 / 1 / 3 "," ",null,null,null,null,null,null,null,null,null,null,null,null,null,null,null,null,null,null,null,null,null,null,{"$f":"0","v":0},null,null,{"$f":"0","v":0}]
[null,null,null," Aseptic Failure / Daily Living / Consrv Mgmt / ACR IV (septic history) / Alive / Aseptic Revision 2 / 2 / 3 "," ",null,null,null,null,null,null,null,null,null,null,null,null,null,null,null,null,null,null,null,null,null,null,null,{"$f":"0","v":0},null,null,null,{"$f":"0","v":0}]
[null,null,null," Daily Living / Infection Failure / Consrv Mgmt / ACR IV (septic history) / Alive / Aseptic Revision 2 / 2 / 3 "," ",null,null,null,null,null,null,null,null,null,null,null,null,null,null,null,null,null,null,null,null,null,null,null,{"$f":"0","v":0},null,null,null,{"$f":"0","v":0}]
[null,null,null," Aseptic Failure / Daily Living / Consrv Mgmt / ACR IV (septic history) / Alive / Aseptic Revision 3 / 3 / 3 "," ",null,null,null,null,null,null,null,null,null,null,null,null,null,null,null,null,null,null,null,null,null,null,null,null,{"$f":"0","v":0}]
[null,null,null," Aseptic Failure / Daily Living / Consrv Mgmt / ACR IV (septic history) / Alive / Aseptic Revision 1 / 1 / 2 "," ",null,null,null,null,null,null,null,null,null,null,null,null,null,null,null,null,null,null,null,null,null,null,null,null,null,null,{"$f":"0","v":0}]
[null,null,null," Daily Living / Infection Failure / Consrv Mgmt / ACR IV (septic history) / Alive / Aseptic Revision 1 / 1 / 2 "," ",null,null,null,null,null,null,null,null,null,null,null,null,null,null,null,null,null,null,null,null,null,null,null,null,null,null,{"$f":"0","v":0}]
[null,null,null,"Terminal Node",{"$f":"0","v":0},{"$f":"0","v":0},{"$f":"0","v":0},{"$f":"0","v":0},{"$f":"0","v":0},{"$f":"0","v":0},{"$f":"0","v":0},{"$f":"0","v":0},{"$f":"0","v":0},{"$f":"0","v":0},{"$f":"0","v":0},{"$f":"0","v":0},{"$f":"0","v":0},{"$f":"0","v":0},{"$f":"0","v":0},{"$f":"0","v":0},{"$f":"0","v":0},{"$f":"0","v":0},{"$f":"0","v":0},{"$f":"0","v":0},{"$f":"0","v":0},{"$f":"0","v":0},{"$f":"0","v":0},{"$f":"0","v":0},{"$f":"0","v":0},{"$f":"0","v":0},{"$f":"0","v":0},{"$f":"0","v":0},{"$f":"0","v":0}]
[null,null,null,"Incremental QALY Tolls:",{"$f":"IF(_t>_tF,0,_tR*SUM(E57:E95))","v":0},{"$f":"IF(_t>_tF,0,_tR*SUM(F57:F95))","v":0},{"$f":"IF(_t>_tF,0,_tR*SUM(G57:G95))","v":0},{"$f":"IF(_t>_tF,0,_tR*SUM(H57:H95))","v":0},{"$f":"IF(_t>_tF,0,_tR*SUM(I57:I95))","v":0},{"$f":"IF(_t>_tF,0,_tR*SUM(J57:J95))","v":0},{"$f":"IF(_t>_tF,0,_tR*SUM(K57:K95))","v":0},{"$f":"IF(_t>_tF,0,_tR*SUM(L57:L95))","v":0},{"$f":"IF(_t>_tF,0,_tR*SUM(M57:M95))","v":0},{"$f":"IF(_t>_tF,0,_tR*SUM(N57:N95))","v":0},{"$f":"IF(_t>_tF,0,_tR*SUM(O57:O95))","v":0},{"$f":"IF(_t>_tF,0,_tR*SUM(P57:P95))","v":0},{"$f":"IF(_t>_tF,0,_tR*SUM(Q57:Q95))","v":0},{"$f":"IF(_t>_tF,0,_tR*SUM(R57:R95))","v":0},{"$f":"IF(_t>_tF,0,_tR*SUM(S57:S95))","v":0},{"$f":"IF(_t>_tF,0,_tR*SUM(T57:T95))","v":0},{"$f":"IF(_t>_tF,0,_tR*SUM(U57:U95))","v":0},{"$f":"IF(_t>_tF,0,_tR*SUM(V57:V95))","v":0},{"$f":"IF(_t>_tF,0,_tR*SUM(W57:W95))","v":0},{"$f":"IF(_t>_tF,0,_tR*SUM(X57:X95))","v":0},{"$f":"IF(_t>_tF,0,_tR*SUM(Y57:Y95))","v":0},{"$f":"IF(_t>_tF,0,_tR*SUM(Z57:Z95))","v":0},{"$f":"IF(_t>_tF,0,_tR*SUM(AA57:AA95))","v":0},{"$f":"IF(_t>_tF,0,_tR*SUM(AB57:AB95))","v":0},{"$f":"IF(_t>_tF,0,_tR*SUM(AC57:AC95))","v":0},{"$f":"IF(_t>_tF,0,_tR*SUM(AD57:AD95))","v":0},{"$f":"IF(_t>_tF,0,_tR*SUM(AE57:AE95))","v":0},{"$f":"IF(_t>_tF,0,_tR*SUM(AF57:AF95))","v":0},{"$f":"IF(_t>_tF,0,_tR*SUM(AG57:AG95))","v":0}]
[null,null,null,"Incremental QALYs:",{"$f":"IF(_t>_tF,0,IF(_CP,0,_dT/2*(E54*E19+E55*E52)))","v":0},{"$f":"IF(_t>_tF,0,IF(_CP,0,_dT/2*(F54*F19+F55*F52)))","v":6.8079239898183125E-2},{"$f":"IF(_t>_tF,0,IF(_CP,0,_dT/2*(G54*G19+G55*G52)))","v":1.5768910800470035E-2},{"$f":"IF(_t>_tF,0,IF(_CP,0,_dT/2*(H54*H19+H55*H52)))","v":2.8511462537389405E-4},{"$f":"IF(_t>_tF,0,IF(_CP,0,_dT/2*(I54*I19+I55*I52)))","v":7.6350972558344838E-5},{"$f":"IF(_t>_tF,0,IF(_CP,0,_dT/2*(J54*J19+J55*J52)))","v":3.58817138738827E-5},{"$f":"IF(_t>_tF,0,IF(_CP,0,_dT/2*(K54*K19+K55*K52)))","v":2.4259862769953895E-3},{"$f":"IF(_t>_tF,0,IF(_CP,0,_dT/2*(L54*L19+L55*L52)))","v":4.3310960128596904E-6},{"$f":"IF(_t>_tF,0,IF(_CP,0,_dT/2*(M54*M19+M55*M52)))","v":2.2934083040744328E-8},{"$f":"IF(_t>_tF,0,IF(_CP,0,_dT/2*(N54*N19+N55*N52)))","v":5.1126886706167386E-8},{"$f":"IF(_t>_tF,0,IF(_CP,0,_dT/2*(O54*O19+O55*O52)))","v":1.8171076202138535E-7},{"$f":"IF(_t>_tF,0,IF(_CP,0,_dT/2*(P54*P19+P55*P52)))","v":1.3444753416568226E-7},{"$f":"IF(_t>_tF,0,IF(_CP,0,_dT/2*(Q54*Q19+Q55*Q52)))","v":6.2999705947150717E-7},{"$f":"IF(_t>_tF,0,IF(_CP,0,_dT/2*(R54*R19+R55*R52)))","v":2.9384083586708476E-7},{"$f":"IF(_t>_tF,0,IF(_CP,0,_dT/2*(S54*S19+S55*S52)))","v":0},{"$f":"IF(_t>_tF,0,IF(_CP,0,_dT/2*(T54*T19+T55*T52)))","v":0},{"$f":"IF(_t>_tF,0,IF(_CP,0,_dT/2*(U54*U19+U55*U52)))","v":0},{"$f":"IF(_t>_tF,0,IF(_CP,0,_dT/2*(V54*V19+V55*V52)))","v":0},{"$f":"IF(_t>_tF,0,IF(_CP,0,_dT/2*(W54*W19+W55*W52)))","v":0},{"$f":"IF(_t>_tF,0,IF(_CP,0,_dT/2*(X54*X19+X55*X52)))","v":0},{"$f":"IF(_t>_tF,0,IF(_CP,0,_dT/2*(Y54*Y19+Y55*Y52)))","v":0},{"$f":"IF(_t>_tF,0,IF(_CP,0,_dT/2*(Z54*Z19+Z55*Z52)))","v":0},{"$f":"IF(_t>_tF,0,IF(_CP,0,_dT/2*(AA54*AA19+AA55*AA52)))","v":0},{"$f":"IF(_t>_tF,0,IF(_CP,0,_dT/2*(AB54*AB19+AB55*AB52)))","v":0},{"$f":"IF(_t>_tF,0,IF(_CP,0,_dT/2*(AC54*AC19+AC55*AC52)))","v":0},{"$f":"IF(_t>_tF,0,IF(_CP,0,_dT/2*(AD54*AD19+AD55*AD52)))","v":0},{"$f":"IF(_t>_tF,0,IF(_CP,0,_dT/2*(AE54*AE19+AE55*AE52)))","v":0},{"$f":"IF(_t>_tF,0,IF(_CP,0,_dT/2*(AF54*AF19+AF55*AF52)))","v":0},{"$f":"IF(_t>_tF,0,IF(_CP,0,_dT/2*(AG54*AG19+AG55*AG52)))","v":0}]
[null,null,null,"Incremental Total:",{"$f":"E97-E96","v":0},{"$f":"F97-F96","v":6.8079239898183125E-2},{"$f":"G97-G96","v":1.5768910800470035E-2},{"$f":"H97-H96","v":2.8511462537389405E-4},{"$f":"I97-I96","v":7.6350972558344838E-5},{"$f":"J97-J96","v":3.58817138738827E-5},{"$f":"K97-K96","v":2.4259862769953895E-3},{"$f":"L97-L96","v":4.3310960128596904E-6},{"$f":"M97-M96","v":2.2934083040744328E-8},{"$f":"N97-N96","v":5.1126886706167386E-8},{"$f":"O97-O96","v":1.8171076202138535E-7},{"$f":"P97-P96","v":1.3444753416568226E-7},{"$f":"Q97-Q96","v":6.2999705947150717E-7},{"$f":"R97-R96","v":2.9384083586708476E-7},{"$f":"S97-S96","v":0},{"$f":"T97-T96","v":0},{"$f":"U97-U96","v":0},{"$f":"V97-V96","v":0},{"$f":"W97-W96","v":0},{"$f":"X97-X96","v":0},{"$f":"Y97-Y96","v":0},{"$f":"Z97-Z96","v":0},{"$f":"AA97-AA96","v":0},{"$f":"AB97-AB96","v":0},{"$f":"AC97-AC96","v":0},{"$f":"AD97-AD96","v":0},{"$f":"AE97-AE96","v":0},{"$f":"AF97-AF96","v":0},{"$f":"AG97-AG96","v":0}]
[null,null,null,"Cum Discounted QALYs:",{"$f":"IF(_R,E98,IF(_t>=_tF,E99,E99+E98*EXP(-_dR*_t)))","v":0},{"$f":"IF(_R,F98,IF(_t>=_tF,F99,F99+F98*EXP(-_dR*_t)))","v":0.41901511336077485},{"$f":"IF(_R,G98,IF(_t>=_tF,G99,G99+G98*EXP(-_dR*_t)))","v":9.7054725589132709E-2},{"$f":"IF(_R,H98,IF(_t>=_tF,H99,H99+H98*EXP(-_dR*_t)))","v":9.447191036269962E-4},{"$f":"IF(_R,I98,IF(_t>=_tF,I99,I99+I98*EXP(-_dR*_t)))","v":2.5161924838374387E-4},{"$f":"IF(_R,J98,IF(_t>=_tF,J99,J99+J98*EXP(-_dR*_t)))","v":1.1802311118993807E-4},{"$f":"IF(_R,K98,IF(_t>=_tF,K99,K99+K98*EXP(-_dR*_t)))","v":1.4931496244481954E-2},{"$f":"IF(_R,L98,IF(_t>=_tF,L99,L99+L98*EXP(-_dR*_t)))","v":1.3596913676897348E-5},{"$f":"IF(_R,M98,IF(_t>=_tF,M99,M99+M98*EXP(-_dR*_t)))","v":4.9994993406473595E-8},{"$f":"IF(_R,N98,IF(_t>=_tF,N99,N99+N98*EXP(-_dR*_t)))","v":1.1083420758690631E-7},{"$f":"IF(_R,O98,IF(_t>=_tF,O99,O99+O98*EXP(-_dR*_t)))","v":3.9718549108315542E-7},{"$f":"IF(_R,P98,IF(_t>=_tF,P99,P99+P98*EXP(-_dR*_t)))","v":2.9548052715405174E-7},{"$f":"IF(_R,Q98,IF(_t>=_tF,Q99,Q99+Q98*EXP(-_dR*_t)))","v":1.3875845631853851E-6},{"$f":"IF(_R,R98,IF(_t>=_tF,R99,R99+R98*EXP(-_dR*_t)))","v":6.452365763344536E-7},{"$f":"IF(_R,S98,IF(_t>=_tF,S99,S99+S98*EXP(-_dR*_t)))","v":0},{"$f":"IF(_R,T98,IF(_t>=_tF,T99,T99+T98*EXP(-_dR*_t)))","v":0},{"$f":"IF(_R,U98,IF(_t>=_tF,U99,U99+U98*EXP(-_dR*_t)))","v":0},{"$f":"IF(_R,V98,IF(_t>=_tF,V99,V99+V98*EXP(-_dR*_t)))","v":0},{"$f":"IF(_R,W98,IF(_t>=_tF,W99,W99+W98*EXP(-_dR*_t)))","v":0},{"$f":"IF(_R,X98,IF(_t>=_tF,X99,X99+X98*EXP(-_dR*_t)))","v":0},{"$f":"IF(_R,Y98,IF(_t>=_tF,Y99,Y99+Y98*EXP(-_dR*_t)))","v":0},{"$f":"IF(_R,Z98,IF(_t>=_tF,Z99,Z99+Z98*EXP(-_dR*_t)))","v":0},{"$f":"IF(_R,AA98,IF(_t>=_tF,AA99,AA99+AA98*EXP(-_dR*_t)))","v":0},{"$f":"IF(_R,AB98,IF(_t>=_tF,AB99,AB99+AB98*EXP(-_dR*_t)))","v":0},{"$f":"IF(_R,AC98,IF(_t>=_tF,AC99,AC99+AC98*EXP(-_dR*_t)))","v":0},{"$f":"IF(_R,AD98,IF(_t>=_tF,AD99,AD99+AD98*EXP(-_dR*_t)))","v":0},{"$f":"IF(_R,AE98,IF(_t>=_tF,AE99,AE99+AE98*EXP(-_dR*_t)))","v":0},{"$f":"IF(_R,AF98,IF(_t>=_tF,AF99,AF99+AF98*EXP(-_dR*_t)))","v":0},{"$f":"IF(_R,AG98,IF(_t>=_tF,AG99,AG99+AG98*EXP(-_dR*_t)))","v":0}]
[null,null,null,"Overall Cum QALYs =",{"$f":"SUM(E99:AG99)","v":0.53233217988762571}]
[]
[null,null,null,"Cost Coefficients (at t):",null,{"$f":"0","v":0},{"$f":"0","v":0},{"$f":"0","v":0},{"$f":"0","v":0},{"$f":"0","v":0},{"$f":"cMed","v":775},{"$f":"cMed","v":775},{"$f":"(cMed+cCustodial)","v":35775},{"$f":"(cMed+cCustodial)","v":35775},{"$f":"(cMed+cCustodial)","v":35775},{"$f":"cMed","v":775},{"$f":"cMed","v":775},{"$f":"cMed","v":775},{"$f":"0","v":0},{"$f":"0","v":0},{"$f":"0","v":0},{"$f":"cMed","v":775},{"$f":"cMed","v":775},{"$f":"(cMed+cCustodial)","v":35775},{"$f":"(cMed+cCustodial)","v":35775},{"$f":"(cMed+cCustodial)","v":35775},{"$f":"(cMed+cCustodial)","v":35775},{"$f":"(cMed+cCustodial)","v":35775},{"$f":"(cMed+cCustodial)","v":35775},{"$f":"(cMed+cCustodial)","v":35775},{"$f":"cMed","v":775},{"$f":"cMed","v":775},{"$f":"cMed","v":775}]
[null,null,null,"(at t+dt):",null,{"$f":"0","v":0},{"$f":"0","v":0},{"$f":"0","v":0},{"$f":"0","v":0},{"$f":"0","v":0},{"$f":"cMed*EXP(-_dR*_dT)","v":772.67848401511412},{"$f":"cMed*EXP(-_dR*_dT)","v":772.67848401511412},{"$f":"(cMed+cCustodial)*EXP(-_dR*_dT)","v":35667.835826633171},{"$f":"(cMed+cCustodial)*EXP(-_dR*_dT)","v":35667.835826633171},{"$f":"(cMed+cCustodial)*EXP(-_dR*_dT)","v":35667.835826633171},{"$f":"cMed*EXP(-_dR*_dT)","v":772.67848401511412},{"$f":"cMed*EXP(-_dR*_dT)","v":772.67848401511412},{"$f":"cMed*EXP(-_dR*_dT)","v":772.67848401511412},{"$f":"0","v":0},{"$f":"0","v":0},{"$f":"0","v":0},{"$f":"cMed*EXP(-_dR*_dT)","v":772.67848401511412},{"$f":"cMed*EXP(-_dR*_dT)","v":772.67848401511412},{"$f":"(cMed+cCustodial)*EXP(-_dR*_dT)","v":35667.835826633171},{"$f":"(cMed+cCustodial)*EXP(-_dR*_dT)","v":35667.835826633171},{"$f":"(cMed+cCustodial)*EXP(-_dR*_dT)","v":35667.835826633171},{"$f":"(cMed+cCustodial)*EXP(-_dR*_dT)","v":35667.835826633171},{"$f":"(cMed+cCustodial)*EXP(-_dR*_dT)","v":35667.835826633171},{"$f":"(cMed+cCustodial)*EXP(-_dR*_dT)","v":35667.835826633171},{"$f":"(cMed+cCustodial)*EXP(-_dR*_dT)","v":35667.835826633171},{"$f":"cMed*EXP(-_dR*_dT)","v":772.67848401511412},{"$f":"cMed*EXP(-_dR*_dT)","v":772.67848401511412},{"$f":"cMed*EXP(-_dR*_dT)","v":772.67848401511412}]
[]
[null,null,"Transition Cost Tolls:"," Daily Living / Daily Living / THA / ACR I (aseptic) / Alive / Initial THA / 0 / 0 ",{"$f":"dTHA*(1-pSurgMort)*pSuccess*(cHospInit+cPhys+cRehab)","v":18371.522094926353}]
[null,null,null," Daily Living / Daily Living / THA / ACR II (aseptic) / Alive / Initial THA / 0 / 0 ",{"$f":"dTHA*(1-pSurgMort)*pFair*(cHospInit+cPhys+cRehab)","v":5319.1489361702124}]
[null,null,null," Daily Living / Daily Living / THA / ACR III (aseptic) / Alive / Initial THA / 0 / 0 ",{"$f":"dTHA*(1-pSurgMort)*pFailure*(cHospInit+cPhys+cRehab)","v":1309.328968903437}]
[null,null,null," Daily Living / Daily Living / Consrv Mgmt / ACR III (aseptic) / Alive / Initial THA / 0 / 0 ",{"$f":"0","v":0}]
[null,null,null," Aseptic Failure / Daily Living / THA / ACR III (aseptic) / Alive / Initial THA / 0 / 0 "," ",{"$f":"[1]!xPr(rAsepFail InitialTHA*_dT)*(pASurgMort*cTotRev+(1-pASurgMort)*pAsepFail Rev1_*pASurgMort*(cTotRev+cTotRev)+(1-pASurgMort)*pAsepFail Rev1_*(1-pASurgMort)*pAsepFail Rev2_*pASurgMort*(cTotRev+cTotRev+cTotRev)+(1-pASurgMort)*pAsepFair Rev1_*cTotRev+(1-pASurgMort)*pAsepFail Rev1_*(1-pASurgMort)*pAsepFair Rev2_*(cTotRev+cTotRev)+(1-pASurgMort)*pAsepFail Rev1_*(1-pASurgMort)*pAsepFail Rev2_*(1-pASurgMort)*pAsepFair Rev3_*(cTotRev+cTotRev+cTotRev)+(1-pASurgMort)*pAsepFail Rev1_*(1-pASurgMort)*pAsepFail Rev2_*(1-pASurgMort)*pAsepFail Rev3_*(cTotRev+cTotRev+cTotRev))","v":38.92162545274681},{"$f":"[1]!xPr(rAsepFail InitialTHA*_dT)*(pASurgMort*cTotRev+(1-pASurgMort)*pAsepFail Rev1_*pASurgMort*(cTotRev+cTotRev)+(1-pASurgMort)*pAsepFail Rev1_*(1-pASurgMort)*pAsepFail Rev2_*pASurgMort*(cTotRev+cTotRev+cTotRev)+(1-pASurgMort)*pAsepFair Rev1_*cTotRev+(1-pASurgMort)*pAsepFail Rev1_*(1-pASurgMort)*pAsepFair Rev2_*(cTotRev+cTotRev)+(1-pASurgMort)*pAsepFail Rev1_*(1-pASurgMort)*pAsepFail Rev2_*(1-pASurgMort)*pAsepFair Rev3_*(cTotRev+cTotRev+cTotRev)+(1-pASurgMort)*pAsepFail Rev1_*(1-pASurgMort)*pAsepFail Rev2_*(1-pASurgMort)*pAsepFail Rev3_*(cTotRev+cTotRev+cTotRev))","v":38.92162545274681},null,null,null,{"$f":"[1]!xPr(rAsepFail InitialTHA*_dT)*(pASurgMort*cTotRev+(1-pASurgMort)*pAsepFail Rev1_*pASurgMort*(cTotRev+cTotRev)+(1-pASurgMort)*pAsepFail Rev1_*(1-pASurgMort)*pAsepFail Rev2_*pASurgMort*(cTotRev+cTotRev+cTotRev)+(1-pASurgMort)*pAsepFair Rev1_*cTotRev+(1-pASurgMort)*pAsepFail Rev1_*(1-pASurgMort)*pAsepFair Rev2_*(cTotRev+cTotRev)+(1-pASurgMort)*pAsepFail Rev1_*(1-pASurgMort)*pAsepFail Rev2_*(1-pASurgMort)*pAsepFair Rev3_*(cTotRev+cTotRev+cTotRev)+(1-pASurgMort)*pAsepFail Rev1_*(1-pASurgMort)*pAsepFail Rev2_*(1-pASurgMort)*pAsepFail Rev3_*(cTotRev+cTotRev+cTotRev))","v":38.92162545274681}]
[null,null,null," Aseptic Failure / Daily Living / THA / ACR III (aseptic) / Alive / Aseptic Revision 1 / 1 / 1 "," ",null,null,{"$f":"[1]!xPr(rAsepFail AsepRev1*_dT)*(pASurgMort*cTotRev+(1-pASurgMort)*pAsepFail Rev2_*pASurgMort*(cTotRev+cTotRev)+(1-pASurgMort)*pAsepFair Rev2_*cTotRev+(1-pASurgMort)*pAsepFail Rev2_*(1-pASurgMort)*pAsepFair Rev3_*(cTotRev+cTotRev)+(1-pASurgMort)*pAsepFail Rev2_*(1-pASurgMort)*pAsepFail Rev3_*(cTotRev+cTotRev))","v":151.04207002612984}]
[null,null,null," Daily Living / Infection Failure / THA / ACR IV (septic history) / Alive / Aseptic Revision 1 / 1 / 1 "," ",null,null,{"$f":"[1]!xPr(rInfecFail AsepRev1*_dT)*(pInfecMort*(cHospRev+cPhys+cRehab)+(1-pInfecMort)*pInfecFail*pInfecMort*((cHospRev+cPhys+cRehab)+(cHospRev+cPhys+cRehab))+(1-pInfecMort)*pInfecFair*(cHospRev+cPhys+cRehab)+(1-pInfecMort)*pInfecFail*(1-pInfecMort)*pInfecFair*((cHospRev+cPhys+cRehab)+(cHospRev+cPhys+cRehab))+(1-pInfecMort)*pInfecFail*(1-pInfecMort)*pInfecFail*((cHospRev+cPhys+cRehab)+(cHospRev+cPhys+cRehab)))","v":67.778352900470153}]
[null,null,null," Aseptic Failure / Daily Living / THA / ACR III (aseptic) / Alive / Aseptic Revision 2 / 2 / 2 "," ",null,null,null,{"$f":"[1]!xPr(rAsepFail AsepRev2*_dT)*(pASurgMort*cTotRev+(1-pASurgMort)*pAsepFair Rev3_*cTotRev+(1-pASurgMort)*pAsepFail Rev3_*cTotRev)","v":139.65058260489502}]
[null,null,null," Daily Living / Infection Failure / THA / ACR IV (septic history) / Alive / Aseptic Revision 2 / 2 / 2 "," ",null,null,null,{"$f":"[1]!xPr(rInfecFail AsepRev2*_dT)*(pInfecMort*(cHospRev+cPhys+cRehab)+(1-pInfecMort)*pInfecFair*(cHospRev+cPhys+cRehab)+(1-pInfecMort)*pInfecFail*(cHospRev+cPhys+cRehab))","v":97.828699908383484}]
[null,null,null," Aseptic Failure / Daily Living / THA / ACR III (aseptic) / Alive / Aseptic Revision 3 / 3 / 3 "," ",null,null,null,null,{"$f":"0","v":0},null,{"$f":"0","v":0}]
[null,null,null," Daily Living / Infection Failure / THA / ACR IV (septic history) / Alive / Aseptic Revision 3 / 3 / 3 "," ",null,null,null,null,{"$f":"0","v":0},null,{"$f":"0","v":0},null,null,{"$f":"0","v":0}]
[null,null,null," Aseptic Failure / Daily Living / THA / ACR IV (septic history) / Alive / Aseptic Revision 1 / 1 / 3 "," ",null,null,null,null,null,null,null,{"$f":"0","v":0},null,null,{"$f":"0","v":0}]
[null,null,null," Daily Living / Infection Failure / THA / ACR IV (septic history) / Alive / Aseptic Revision 1 / 1 / 3 "," ",null,null,null,null,null,null,null,{"$f":"0","v":0},null,null,{"$f":"0","v":0}]
[null,null,null," Aseptic Failure / Daily Living / THA / ACR IV (septic history) / Alive / Aseptic Revision 2 / 2 / 3 "," ",null,null,null,null,null,null,null,null,{"$f":"0","v":0},null,null,null,{"$f":"0","v":0}]
[null,null,null," Daily Living / Infection Failure / THA / ACR IV (septic history) / Alive / Aseptic Revision 2 / 2 / 3 "," ",null,null,null,null,null,null,null,null,{"$f":"0","v":0},null,null,null,{"$f":"0","v":0}]
[null,null,null," Aseptic Failure / Daily Living / THA / ACR IV (septic history) / Alive / Aseptic Revision 3 / 3 / 3 "," ",null,null,null,null,null,null,null,null,null,{"$f":"0","v":0}]
[null,null,null," Aseptic Failure / Daily Living / THA / ACR IV (septic history) / Alive / Aseptic Revision 1 / 1 / 2 "," ",null,null,null,null,null,null,null,null,null,null,null,{"$f":"[1]!xPr(rAsepFail AsepRev1*_dT)*(pASurgMort*cTotRev+(1-pASurgMort)*pAsepFair Rev2_*cTotRev+(1-pASurgMort)*pAsepFail Rev2_*cTotRev)","v":111.77629836823843}]
[null,null,null," Daily Living / Infection Failure / THA / ACR IV (septic history) / Alive / Aseptic Revision 1 / 1 / 2 "," ",null,null,null,null,null,null,null,null,null,null,null,{"$f":"[1]!xPr(rInfecFail AsepRev1*_dT)*(pInfecMort*(cHospRev+cPhys+cRehab)+(1-pInfecMort)*pInfecFair*(cHospRev+cPhys+cRehab)+(1-pInfecMort)*pInfecFail*(cHospRev+cPhys+cRehab))","v":55.944037314673778}]
[null,null,null," Aseptic Failure / Daily Living / Consrv Mgmt / ACR III (aseptic) / Alive / Aseptic Revision 1 / 1 / 1 "," ",null,null,null,null,null,null,null,null,null,null,null,null,null,{"$f":"[1]!xPr(rAsepFail AsepRev1*_dT)*(pASurgMort*cTotRev+(1-pASurgMort)*pAsepFail Rev2_*pASurgMort*(cTotRev+cTotRev)+(1-pASurgMort)*pAsepFair Rev2_*cTotRev+(1-pASurgMort)*pAsepFail Rev2_*(1-pASurgMort)*pAsepFair Rev3_*(cTotRev+cTotRev)+(1-pASurgMort)*pAsepFail Rev2_*(1-pASurgMort)*pAsepFail Rev3_*(cTotRev+cTotRev))","v":151.04207002612984}]
[null,null,null," Daily Living / Infection Failure / Consrv Mgmt / ACR IV (septic history) / Alive / Aseptic Revision 1 / 1 / 1 "," ",null,null,null,null,null,null,null,null,null,null,null,null,null,{"$f":"[1]!xPr(rInfecFail AsepRev1*_dT)*(pInfecMort*(cHospRev+cPhys+cRehab)+(1-pInfecMort)*pInfecFail*pInfecMort*((cHospRev+cPhys+cRehab)+(cHospRev+cPhys+cRehab))+(1-pInfecMort)*pInfecFair*(cHospRev+cPhys+cRehab)+(1-pInfecMort)*pInfecFail*(1-pInfecMort)*pInfecFair*((cHospRev+cPhys+cRehab)+(cHospRev+cPhys+cRehab))+(1-pInfecMort)*pInfecFail*(1-pInfecMort)*pInfecFail*((cHospRev+cPhys+cRehab)+(cHospRev+cPhys+cRehab)))","v":67.778352900470153},null,null,null,null,null,{"$f":"[1]!xPr(rInfecFail AsepRev1*_dT)*(pInfecMort*(cHospRev+cPhys+cRehab)+(1-pInfecMort)*pInfecFail*pInfecMort*((cHospRev+cPhys+cRehab)+(cHospRev+cPhys+cRehab))+(1-pInfecMort)*pInfecFair*(cHospRev+cPhys+cRehab)+(1-pInfecMort)*pInfecFail*(1-pInfecMort)*pInfecFair*((cHospRev+cPhys+cRehab)+(cHospRev+cPhys+cRehab))+(1-pInfecMort)*pInfecFail*(1-pInfecMort)*pInfecFail*((cHospRev+cPhys+cRehab)+(cHospRev+cPhys+cRehab)))","v":67.778352900470153}]
[null,null,null," Aseptic Failure / Daily Living / Consrv Mgmt / ACR III (aseptic) / Alive / Aseptic Revision 2 / 2 / 2 "," ",null,null,null,null,null,null,null,null,null,null,null,null,null,null,{"$f":"[1]!xPr(rAsepFail AsepRev2*_dT)*(pASurgMort*cTotRev+(1-pASurgMort)*pAsepFair Rev3_*cTotRev+(1-pASurgMort)*pAsepFail Rev3_*cTotRev)","v":139.65058260489502}]
[null,null,null," Daily Living / Infection Failure / Consrv Mgmt / ACR IV (septic history) / Alive / Aseptic Revision 2 / 2 / 2 "," ",null,null,null,null,null,null,null,null,null,null,null,null,null,null,{"$f":"[1]!xPr(rInfecFail AsepRev2*_dT)*(pInfecMort*(cHospRev+cPhys+cRehab)+(1-pInfecMort)*pInfecFair*(cHospRev+cPhys+cRehab)+(1-pInfecMort)*pInfecFail*(cHospRev+cPhys+cRehab))","v":97.828699908383484},null,null,null,null,null,{"$f":"[1]!xPr(rInfecFail AsepRev2*_dT)*(pInfecMort*(cHospRev+cPhys+cRehab)+(1-pInfecMort)*pInfecFair*(cHospRev+cPhys+cRehab)+(1-pInfecMort)*pInfecFail*(cHospRev+cPhys+cRehab))","v":97.828699908383484}]
[null,null,null," Aseptic Failure / Daily Living / Consrv Mgmt / ACR III (aseptic) / Alive / Aseptic Revision 3 / 3 / 3 "," ",null,null,null,null,null,null,null,null,null,null,null,null,null,null,null,{"$f":"0","v":0},null,{"$f":"0","v":0}]
[null,null,null," Daily Living / Infection Failure / Consrv Mgmt / ACR IV (septic history) / Alive / Aseptic Revision 3 / 3 / 3 "," ",null,null,null,null,null,null,null,null,null,null,null,null,null,null,null,{"$f":"0","v":0},null,{"$f":"0","v":0},null,null,null,{"$f":"0","v":0},null,null,{"$f":"0","v":0}]
[null,null,null," Aseptic Failure / Daily Living / Consrv Mgmt / ACR III (aseptic) / Alive / Initial THA / 0 / 0 "," ",null,null,null,null,null,null,null,null,null,null,null,null,null,null,null,null,{"$f":"[1]!xPr(rAsepFail InitialTHA*_dT)*(pASurgMort*cTotRev+(1-pASurgMort)*pAsepFail Rev1_*pASurgMort*(cTotRev+cTotRev)+(1-pASurgMort)*pAsepFail Rev1_*(1-pASurgMort)*pAsepFail Rev2_*pASurgMort*(cTotRev+cTotRev+cTotRev)+(1-pASurgMort)*pAsepFair Rev1_*cTotRev+(1-pASurgMort)*pAsepFail Rev1_*(1-pASurgMort)*pAsepFair Rev2_*(cTotRev+cTotRev)+(1-pASurgMort)*pAsepFail Rev1_*(1-pASurgMort)*pAsepFail Rev2_*(1-pASurgMort)*pAsepFair Rev3_*(cTotRev+cTotRev+cTotRev)+(1-pASurgMort)*pAsepFail Rev1_*(1-pASurgMort)*pAsepFail Rev2_*(1-pASurgMort)*pAsepFail Rev3_*(cTotRev+cTotRev+cTotRev))","v":38.92162545274681}]
[null,null,null," Daily Living / Daily Living / Consrv Mgmt / ACR IV (aseptic) / Alive / Initial THA / 0 / 0 "," ",null,null,null,null,null,null,null,null,null,null,null,null,null,null,null,null,{"$f":"0","v":0}]
[null,null,null," Daily Living / Daily Living / Consrv Mgmt / ACR IV (aseptic) / Alive / Aseptic Revision 3 / 3 / 3 "," ",null,null,null,null,null,null,null,null,null,null,null,null,null,null,null,null,null,{"$f":"0","v":0}]
[null,null,null," Aseptic Failure / Daily Living / Consrv Mgmt / ACR IV (aseptic) / Alive / Initial THA / 0 / 0 "," ",null,null,null,null,null,null,null,null,null,null,null,null,null,null,null,null,null,null,{"$f":"[1]!xPr(rAsepFail InitialTHA*_dT)*(pASurgMort*cTotRev+(1-pASurgMort)*pAsepFail Rev1_*pASurgMort*(cTotRev+cTotRev)+(1-pASurgMort)*pAsepFail Rev1_*(1-pASurgMort)*pAsepFail Rev2_*pASurgMort*(cTotRev+cTotRev+cTotRev)+(1-pASurgMort)*pAsepFair Rev1_*cTotRev+(1-pASurgMort)*pAsepFail Rev1_*(1-pASurgMort)*pAsepFair Rev2_*(cTotRev+cTotRev)+(1-pASurgMort)*pAsepFail Rev1_*(1-pASurgMort)*pAsepFail Rev2_*(1-pASurgMort)*pAsepFair Rev3_*(cTotRev+cTotRev+cTotRev)+(1-pASurgMort)*pAsepFail Rev1_*(1-pASurgMort)*pAsepFail Rev2_*(1-pASurgMort)*pAsepFail Rev3_*(cTotRev+cTotRev+cTotRev))","v":38.92162545274681}]
[null,null,null," Aseptic Failure / Daily Living / Consrv Mgmt / ACR IV (aseptic) / Alive / Aseptic Revision 1 / 1 / 1 "," ",null,null,null,null,null,null,null,null,null,null,null,null,null,null,null,null,null,null,null,{"$f":"[1]!xPr(rAsepFail AsepRev1*_dT)*(pASurgMort*cTotRev+(1-pASurgMort)*pAsepFail Rev2_*pASurgMort*(cTotRev+cTotRev)+(1-pASurgMort)*pAsepFair Rev2_*cTotRev+(1-pASurgMort)*pAsepFail Rev2_*(1-pASurgMort)*pAsepFair Rev3_*(cTotRev+cTotRev)+(1-pASurgMort)*pAsepFail Rev2_*(1-pASurgMort)*pAsepFail Rev3_*(cTotRev+cTotRev))","v":151.04207002612984}]
[null,null,null," Aseptic Failure / Daily Living / Consrv Mgmt / ACR IV (aseptic) / Alive / Aseptic Revision 2 / 2 / 2 "," ",null,null,null,null,null,null,null,null,null,null,null,null,null,null,null,null,null,null,null,null,{"$f":"[1]!xPr(rAsepFail AsepRev2*_dT)*(pASurgMort*cTotRev+(1-pASurgMort)*pAsepFair Rev3_*cTotRev+(1-pASurgMort)*pAsepFail Rev3_*cTotRev)","v":139.65058260489502}]
[null,null,null," Aseptic Failure / Daily Living / Consrv Mgmt / ACR IV (aseptic) / Alive / Aseptic Revision 3 / 3 / 3 "," ",null,null,null,null,null,null,null,null,null,null,null,null,null,null,null,null,null,null,null,null,null,{"$f":"0","v":0}]
[null,null,null," Aseptic Failure / Daily Living / Consrv Mgmt / ACR IV (septic history) / Alive / Aseptic Revision 1 / 1 / 3 "," ",null,null,null,null,null,null,null,null,null,null,null,null,null,null,null,null,null,null,null,null,null,null,{"$f":"0","v":0},null,null,{"$f":"0","v":0}]
[null,null,null," Daily Living / Infection Failure / Consrv Mgmt / ACR IV (septic history) / Alive / Aseptic Revision 1 / 1 / 3 "," ",null,null,null,null,null,null,null,null,null,null,null,null,null,null,null,null,null,null,null,null,null,null,{"$f":"0","v":0},null,null,{"$f":"0","v":0}]
[null,null,null," Aseptic Failure / Daily Living / Consrv Mgmt / ACR IV (septic history) / Alive / Aseptic Revision 2 / 2 / 3 "," ",null,null,null,null,null,null,null,null,null,null,null,null,null,null,null,null,null,null,null,null,null,null,null,{"$f":"0","v":0},null,null,null,{"$f":"0","v":0}]
[null,null,null," Daily Living / Infection Failure / Consrv Mgmt / ACR IV (septic history) / Alive / Aseptic Revision 2 / 2 / 3 "," ",null,null,null,null,null,null,null,null,null,null,null,null,null,null,null,null,null,null,null,null,null,null,null,{"$f":"0","v":0},null,null,null,{"$f":"0","v":0}]
[null,null,null," Aseptic Failure / Daily Living / Consrv Mgmt / ACR IV (septic history) / Alive / Aseptic Revision 3 / 3 / 3 "," ",null,null,null,null,null,null,null,null,null,null,null,null,null,null,null,null,null,null,null,null,null,null,null,null,{"$f":"0","v":0}]
[null,null,null," Aseptic Failure / Daily Living / Consrv Mgmt / ACR IV (septic history) / Alive / Aseptic Revision 1 / 1 / 2 "," ",null,null,null,null,null,null,null,null,null,null,null,null,null,null,null,null,null,null,null,null,null,null,null,null,null,null,{"$f":"[1]!xPr(rAsepFail AsepRev1*_dT)*(pASurgMort*cTotRev+(1-pASurgMort)*pAsepFair Rev2_*cTotRev+(1-pASurgMort)*pAsepFail Rev2_*cTotRev)","v":111.77629836823843}]
[null,null,null," Daily Living / Infection Failure / Consrv Mgmt / ACR IV (septic history) / Alive / Aseptic Revision 1 / 1 / 2 "," ",null,null,null,null,null,null,null,null,null,null,null,null,null,null,null,null,null,null,null,null,null,null,null,null,null,null,{"$f":"[1]!xPr(rInfecFail AsepRev1*_dT)*(pInfecMort*(cHospRev+cPhys+cRehab)+(1-pInfecMort)*pInfecFair*(cHospRev+cPhys+cRehab)+(1-pInfecMort)*pInfecFail*(cHospRev+cPhys+cRehab))","v":55.944037314673778}]
[null,null,null,"Terminal Node",{"$f":"dTHA*pSurgMort*(cHospInit+cPhys+cRehab)","v":0},{"$f":"0","v":0},{"$f":"0","v":0},{"$f":"0","v":0},{"$f":"0","v":0},{"$f":"0","v":0},{"$f":"0","v":0},{"$f":"0","v":0},{"$f":"0","v":0},{"$f":"0","v":0},{"$f":"0","v":0},{"$f":"0","v":0},{"$f":"0","v":0},{"$f":"0","v":0},{"$f":"0","v":0},{"$f":"0","v":0},{"$f":"0","v":0},{"$f":"0","v":0},{"$f":"0","v":0},{"$f":"0","v":0},{"$f":"0","v":0},{"$f":"0","v":0},{"$f":"0","v":0},{"$f":"0","v":0},{"$f":"0","v":0},{"$f":"0","v":0},{"$f":"0","v":0},{"$f":"0","v":0},{"$f":"0","v":0}]
[null,null,null,"Incremental Cost Tolls:",{"$f":"IF(_t>_tF,0,_tR*SUM(E105:E143))","v":0},{"$f":"IF(_t>_tF,0,_tR*SUM(F105:F143))","v":26.717852792722624},{"$f":"IF(_t>_tF,0,_tR*SUM(G105:G143))","v":7.7356812094742571},{"$f":"IF(_t>_tF,0,_tR*SUM(H105:H143))","v":0.71637762106652758},{"$f":"IF(_t>_tF,0,_tR*SUM(I105:I143))","v":0.20779992786009557},{"$f":"IF(_t>_tF,0,_tR*SUM(J105:J143))","v":0},{"$f":"IF(_t>_tF,0,_tR*SUM(K105:K143))","v":1.9041676823321245},{"$f":"IF(_t>_tF,0,_tR*SUM(L105:L143))","v":0},{"$f":"IF(_t>_tF,0,_tR*SUM(M105:M143))","v":0},{"$f":"IF(_t>_tF,0,_tR*SUM(N105:N143))","v":0},{"$f":"IF(_t>_tF,0,_tR*SUM(O105:O143))","v":0},{"$f":"IF(_t>_tF,0,_tR*SUM(P105:P143))","v":0},{"$f":"IF(_t>_tF,0,_tR*SUM(Q105:Q143))","v":1.7109433361560474E-3},{"$f":"IF(_t>_tF,0,_tR*SUM(R105:R143))","v":0},{"$f":"IF(_t>_tF,0,_tR*SUM(S105:S143))","v":0},{"$f":"IF(_t>_tF,0,_tR*SUM(T105:T143))","v":0},{"$f":"IF(_t>_tF,0,_tR*SUM(U105:U143))","v":0},{"$f":"IF(_t>_tF,0,_tR*SUM(V105:V143))","v":0},{"$f":"IF(_t>_tF,0,_tR*SUM(W105:W143))","v":0},{"$f":"IF(_t>_tF,0,_tR*SUM(X105:X143))","v":0},{"$f":"IF(_t>_tF,0,_tR*SUM(Y105:Y143))","v":0},{"$f":"IF(_t>_tF,0,_tR*SUM(Z105:Z143))","v":0},{"$f":"IF(_t>_tF,0,_tR*SUM(AA105:AA143))","v":0},{"$f":"IF(_t>_tF,0,_tR*SUM(AB105:AB143))","v":0},{"$f":"IF(_t>_tF,0,_tR*SUM(AC105:AC143))","v":0},{"$f":"IF(_t>_tF,0,_tR*SUM(AD105:AD143))","v":0},{"$f":"IF(_t>_tF,0,_tR*SUM(AE105:AE143))","v":0},{"$f":"IF(_t>_tF,0,_tR*SUM(AF105:AF143))","v":0},{"$f":"IF(_t>_tF,0,_tR*SUM(AG105:AG143))","v":0}]
[null,null,null,"Incremental Costs:",{"$f":"IF(_t>_tF,0,IF(_CP,0,_dT/2*(E102*E19+E103*E52)))","v":0},{"$f":"IF(_t>_tF,0,IF(_CP,0,_dT/2*(F102*F19+F103*F52)))","v":0},{"$f":"IF(_t>_tF,0,IF(_CP,0,_dT/2*(G102*G19+G103*G52)))","v":0},{"$f":"IF(_t>_tF,0,IF(_CP,0,_dT/2*(H102*H19+H103*H52)))","v":0},{"$f":"IF(_t>_tF,0,IF(_CP,0,_dT/2*(I102*I19+I103*I52)))","v":0},{"$f":"IF(_t>_tF,0,IF(_CP,0,_dT/2*(J102*J19+J103*J52)))","v":0},{"$f":"IF(_t>_tF,0,IF(_CP,0,_dT/2*(K102*K19+K103*K52)))","v":3.7602787293428537},{"$f":"IF(_t>_tF,0,IF(_CP,0,_dT/2*(L102*L19+L103*L52)))","v":6.7131988199325204E-3},{"$f":"IF(_t>_tF,0,IF(_CP,0,_dT/2*(M102*M19+M103*M52)))","v":2.7348894026087613E-3},{"$f":"IF(_t>_tF,0,IF(_CP,0,_dT/2*(N102*N19+N103*N52)))","v":6.0968812397104617E-3},{"$f":"IF(_t>_tF,0,IF(_CP,0,_dT/2*(O102*O19+O103*O52)))","v":2.1669008371050208E-2},{"$f":"IF(_t>_tF,0,IF(_CP,0,_dT/2*(P102*P19+P103*P52)))","v":2.083936779568075E-4},{"$f":"IF(_t>_tF,0,IF(_CP,0,_dT/2*(Q102*Q19+Q103*Q52)))","v":9.7649544218083618E-4},{"$f":"IF(_t>_tF,0,IF(_CP,0,_dT/2*(R102*R19+R103*R52)))","v":4.5545329559398134E-4},{"$f":"IF(_t>_tF,0,IF(_CP,0,_dT/2*(S102*S19+S103*S52)))","v":0},{"$f":"IF(_t>_tF,0,IF(_CP,0,_dT/2*(T102*T19+T103*T52)))","v":0},{"$f":"IF(_t>_tF,0,IF(_CP,0,_dT/2*(U102*U19+U103*U52)))","v":0},{"$f":"IF(_t>_tF,0,IF(_CP,0,_dT/2*(V102*V19+V103*V52)))","v":0},{"$f":"IF(_t>_tF,0,IF(_CP,0,_dT/2*(W102*W19+W103*W52)))","v":0},{"$f":"IF(_t>_tF,0,IF(_CP,0,_dT/2*(X102*X19+X103*X52)))","v":0},{"$f":"IF(_t>_tF,0,IF(_CP,0,_dT/2*(Y102*Y19+Y103*Y52)))","v":0},{"$f":"IF(_t>_tF,0,IF(_CP,0,_dT/2*(Z102*Z19+Z103*Z52)))","v":0},{"$f":"IF(_t>_tF,0,IF(_CP,0,_dT/2*(AA102*AA19+AA103*AA52)))","v":0},{"$f":"IF(_t>_tF,0,IF(_CP,0,_dT/2*(AB102*AB19+AB103*AB52)))","v":0},{"$f":"IF(_t>_tF,0,IF(_CP,0,_dT/2*(AC102*AC19+AC103*AC52)))","v":0},{"$f":"IF(_t>_tF,0,IF(_CP,0,_dT/2*(AD102*AD19+AD103*AD52)))","v":0},{"$f":"IF(_t>_tF,0,IF(_CP,0,_dT/2*(AE102*AE19+AE103*AE52)))","v":0},{"$f":"IF(_t>_tF,0,IF(_CP,0,_dT/2*(AF102*AF19+AF103*AF52)))","v":0},{"$f":"IF(_t>_tF,0,IF(_CP,0,_dT/2*(AG102*AG19+AG103*AG52)))","v":0}]
[null,null,null,"Incremental Total:",{"$f":"E145+E144","v":0},{"$f":"F145+F144","v":26.717852792722624},{"$f":"G145+G144","v":7.7356812094742571},{"$f":"H145+H144","v":0.71637762106652758},{"$f":"I145+I144","v":0.20779992786009557},{"$f":"J145+J144","v":0},{"$f":"K145+K144","v":5.6644464116749784},{"$f":"L145+L144","v":6.7131988199325204E-3},{"$f":"M145+M144","v":2.7348894026087613E-3},{"$f":"N145+N144","v":6.0968812397104617E-3},{"$f":"O145+O144","v":2.1669008371050208E-2},{"$f":"P145+P144","v":2.083936779568075E-4},{"$f":"Q145+Q144","v":2.6874387783368836E-3},{"$f":"R145+R144","v":4.5545329559398134E-4},{"$f":"S145+S144","v":0},{"$f":"T145+T144","v":0},{"$f":"U145+U144","v":0},{"$f":"V145+V144","v":0},{"$f":"W145+W144","v":0},{"$f":"X145+X144","v":0},{"$f":"Y145+Y144","v":0},{"$f":"Z145+Z144","v":0},{"$f":"AA145+AA144","v":0},{"$f":"AB145+AB144","v":0},{"$f":"AC145+AC144","v":0},{"$f":"AD145+AD144","v":0},{"$f":"AE145+AE144","v":0},{"$f":"AF145+AF144","v":0},{"$f":"AG145+AG144","v":0}]
[null,null,null,"Cum Discounted Costs:",{"$f":"IF(_R,E146,IF(_t>=_tF,E147,E147+E146*EXP(-_dR*_t)))","v":25000},{"$f":"IF(_R,F146,IF(_t>=_tF,F147,F147+F146*EXP(-_dR*_t)))","v":164.44343581747216},{"$f":"IF(_R,G146,IF(_t>=_tF,G147,G147+G146*EXP(-_dR*_t)))","v":47.611685203277013},{"$f":"IF(_R,H146,IF(_t>=_tF,H147,H147+H146*EXP(-_dR*_t)))","v":2.1692759568164597},{"$f":"IF(_R,I146,IF(_t>=_tF,I147,I147+I146*EXP(-_dR*_t)))","v":0.62619098038680054},{"$f":"IF(_R,J146,IF(_t>=_tF,J147,J147+J146*EXP(-_dR*_t)))","v":0},{"$f":"IF(_R,K146,IF(_t>=_tF,K147,K147+K146*EXP(-_dR*_t)))","v":34.86361861359984},{"$f":"IF(_R,L146,IF(_t>=_tF,L147,L147+L146*EXP(-_dR*_t)))","v":2.107521619919089E-2},{"$f":"IF(_R,M146,IF(_t>=_tF,M147,M147+M146*EXP(-_dR*_t)))","v":5.961902963721977E-3},{"$f":"IF(_R,N146,IF(_t>=_tF,N147,N147+N146*EXP(-_dR*_t)))","v":1.3216979254738579E-2},{"$f":"IF(_R,O146,IF(_t>=_tF,O147,O147+O146*EXP(-_dR*_t)))","v":4.7364369811666293E-2},{"$f":"IF(_R,P146,IF(_t>=_tF,P147,P147+P146*EXP(-_dR*_t)))","v":4.5799481708878019E-4},{"$f":"IF(_R,Q146,IF(_t>=_tF,Q147,Q147+Q146*EXP(-_dR*_t)))","v":5.5680676826906838E-3},{"$f":"IF(_R,R146,IF(_t>=_tF,R147,R147+R146*EXP(-_dR*_t)))","v":1.0001166933184028E-3},{"$f":"IF(_R,S146,IF(_t>=_tF,S147,S147+S146*EXP(-_dR*_t)))","v":0},{"$f":"IF(_R,T146,IF(_t>=_tF,T147,T147+T146*EXP(-_dR*_t)))","v":0},{"$f":"IF(_R,U146,IF(_t>=_tF,U147,U147+U146*EXP(-_dR*_t)))","v":0},{"$f":"IF(_R,V146,IF(_t>=_tF,V147,V147+V146*EXP(-_dR*_t)))","v":0},{"$f":"IF(_R,W146,IF(_t>=_tF,W147,W147+W146*EXP(-_dR*_t)))","v":0},{"$f":"IF(_R,X146,IF(_t>=_tF,X147,X147+X146*EXP(-_dR*_t)))","v":0},{"$f":"IF(_R,Y146,IF(_t>=_tF,Y147,Y147+Y146*EXP(-_dR*_t)))","v":0},{"$f":"IF(_R,Z146,IF(_t>=_tF,Z147,Z147+Z146*EXP(-_dR*_t)))","v":0},{"$f":"IF(_R,AA146,IF(_t>=_tF,AA147,AA147+AA146*EXP(-_dR*_t)))","v":0},{"$f":"IF(_R,AB146,IF(_t>=_tF,AB147,AB147+AB146*EXP(-_dR*_t)))","v":0},{"$f":"IF(_R,AC146,IF(_t>=_tF,AC147,AC147+AC146*EXP(-_dR*_t)))","v":0},{"$f":"IF(_R,AD146,IF(_t>=_tF,AD147,AD147+AD146*EXP(-_dR*_t)))","v":0},{"$f":"IF(_R,AE146,IF(_t>=_tF,AE147,AE147+AE146*EXP(-_dR*_t)))","v":0},{"$f":"IF(_R,AF146,IF(_t>=_tF,AF147,AF147+AF146*EXP(-_dR*_t)))","v":0},{"$f":"IF(_R,AG146,IF(_t>=_tF,AG147,AG147+AG146*EXP(-_dR*_t)))","v":0}]
[null,null,null,"Overall Cum Costs =",{"$f":"SUM(E147:AG147)","v":25249.808851218975}]

{"sheet":"Aseptic_Fail","index":7,"n_rows":24,"n_cols":20,"rows_kept":24,"cut":false,"hidden":false,"merged":[]}
[]
[]
[]
[]
[]
[]
[]
[]
[]
[]
[]
[]
[]
[]
[null,null,"Last Surgery","rAsepFail","rInfecFail"]
[null,null,"InitialTHA",0.01,2E-3]
[null,null,"AsepRev1",0.04,0.02]
[null,null,"AsepRev2",0.05,3.5000000000000003E-2,null,null,"Current Surg","pAsepFair","pAsepFail","CtFair","CtFail",null,null,"pASurgMort =",1.2E-2,null,"Costs"]
[null,null,"AsepRev3",0.1,0.05,null,null,"Rev1",{"$f":"K19/SUM($K19:$L19)","v":0.70731707317073167},{"$f":"L19/SUM($K19:$L19)","v":0.29268292682926828},116,48,null,null,null,null,null,"cHospInit",17000,"Initial THA"]
[null,null,"InfecRev1",0.04,0.02,null,null,"Rev2",{"$f":"K20/SUM($K20:$L20)","v":0.64444444444444449},{"$f":"L20/SUM($K20:$L20)","v":0.35555555555555557},29,16]
[null,null,"InfecRev2",0.05,3.5000000000000003E-2,null,null,"Rev3",0.8571428571428571,0.14285714285714285,6,1,null,null,null,null,null,"cHospRev",20000,"per revision"]
[null,null,"InfecRev3",0.1,0.05,null,null,null,null,null,null,null,null,null,null,null,null,"cPhys",5000,"per revision"]
[null,null,null,null,null,null,null,null,null,null,null,null,null,null,null,null,null,"cRehab",3000,"per revision"]
[null,null,null,null,null,null,null,null,null,null,null,null,null,null,null,null,null,"cTotRev ",{"$f":"SUM(S21:S23)","v":28000},"per revision"]

{"sheet":"Infection_Fail","index":8,"n_rows":20,"n_cols":11,"rows_kept":20,"cut":false,"hidden":false,"merged":[]}
[]
[]
[]
[]
[]
[]
[]
[]
[]
[]
[]
[]
[]
[]
[]
[]
[null,null,null,"pInfecMort =",{"$f":"G17/F17","v":1.9230769230769232E-2},104,2]
[]
[null,null,null,"pInfecFair","pInfecFail","CtFair","CtFail"]
[null,null,null,{"$f":"F20/SUM($F$20:$G$20)","v":0.78431372549019607},{"$f":"G20/SUM($F$20:$G$20)","v":0.21568627450980393},80,22,null,null,null,{"$f":"rInfecFail InfecRev1","v":0.02}]

{"sheet":"THA_Decision","index":9,"n_rows":14,"n_cols":16,"rows_kept":14,"cut":false,"hidden":false,"merged":[]}
[]
[]
[null,null,null,"dTHA =",1]
[]
[]
[null,null,null,null,null,null,null,null,null,null,null,null,"dTHA","QALY","Cost"]
[null,null,null,null,null,null,null,null,null,null,null,null,{"$f":"dTHA","v":1},{"$f":"_CumQ","v":0.53233217988762571},{"$f":"_CumC","v":25249.808851218975}]
[null,null,null,null,null,null,null,null,null,null,null,null,1,5.1311249368912737,28086.01441943902]
[null,null,null,null,null,null,null,null,null,null,null,null,0,2.6888141617952179,31769.879001273544]
[]
[null,null,null,null,null,null,null,null,null,null,null,null,"Incremental",{"$f":"N8-N9","v":2.4423107750960558},{"$f":"O8-O9","v":-3683.8645818345249},{"$f":"IF(O11>0,O11/N11,\"-\")","v":"-"}]
[]
[null,null,null,null,null,null,null,null,null,null,null,null,"Female age 60",5.9410365419537321,-86070.570743238583,"-"]
[null,null,null,null,null,null,null,null,null,null,null,null,"Male age 87",2.4423107750960558,-3683.8645818345249,"-"]

{"sheet":"ACR_Status","index":10,"n_rows":20,"n_cols":24,"rows_kept":20,"cut":false,"hidden":false,"merged":[]}
[]
[]
[]
[]
[null,null,null,null,null,null,null,null,null,null,null,null,null,null,null,null,null,null,null,"pSuccess =",{"$f":"V5/$V$8","v":0.73486088379705405},449]
[null,null,null,null,null,null,null,null,null,null,null,null,null,null,null,null,null,null,null,"pFair =",{"$f":"V6/$V$8","v":0.21276595744680851},130]
[null,null,null,null,null,null,null,null,null,null,null,null,null,null,null,null,null,null,null,"pFailure =",5.2373158756137482E-2,32]
[null,null,null,null,null,null,null,null,null,null,null,null,null,null,null,null,null,null,null,null,null,{"$f":"SUM(V5:V7)","v":611}]
[null,null,null,null,null,null,null,null,null,null,null,null,null,null,null,null,null,null,null,"pSurgMort =",{"$f":"1-SUM(U5:U7)","v":0}]
[]
[null,null,null,null,null,null,null,null,null,null,null,null,null,null,null,null,null,null,null,"qI =",1]
[null,null,null,null,null,null,null,null,null,null,null,null,null,null,null,null,null,null,null,"qII =",0.8]
[null,null,null,null,null,null,null,null,null,null,null,null,null,null,null,null,null,null,null,"qIII =",0.5]
[null,null,null,null,null,null,null,null,null,null,null,null,null,null,null,null,null,null,null,"qIV =",0.3]
[]
[null,null,null,null,null,null,null,null,null,null,null,null,null,null,null,null,null,null,null,"rNatural =",{"$f":"X16/W16","v":3.2967032967032968E-2},{"$f":"\"/yr\"","v":"/yr"},910,30]
[null,null,null,null,null,null,null,null,null,null,null,null,null,null,null,null,null,null,null,"(30 progressions in 910 patient-years)"]
[]
[null,null,null,null,null,null,null,null,null,null,null,null,null,null,null,null,null,null,null,"cMed",775,{"$f":"\"/yr for ACR III,IV\"","v":"/yr for ACR III,IV"}]
[null,null,null,null,null,null,null,null,null,null,null,null,null,null,null,null,null,null,null,"cCustodial",35000,{"$f":"\"/yr for ACR IV\"","v":"/yr for ACR IV"}]

{"sheet":"Mortality","index":11,"n_rows":3,"n_cols":5,"rows_kept":3,"cut":false,"hidden":false,"merged":[]}
[]
[null,null,null,"Gender =","Male"]
[null,null,null,"Age =",87]

{"sheet":"Dependency Data","index":12,"n_rows":112,"n_cols":8,"rows_kept":112,"cut":false,"hidden":true,"merged":[]}
["Entry Count",22]
["Next Available ID",25]
[]
["ID",1]
["IfFactorID",7]
["StateID",19,21,20]
["ThenD","rAseptic Initial_THA","ID 2","ID 3"]
[]
["ID",2]
["IfFactorID","**Deleted**"]
["StateID"]
["ThenD","rAseptic Asceptic_1","rAseptic Asceptic_2","rAseptic Asceptic_3",0]
[]
["ID",3]
["IfFactorID","**Deleted**"]
["StateID"]
["ThenD","rAsceptic Infect_1","rAsceptic Infect_2","rAsceptic Infect_3",0]
[]
["ID",4]
["IfFactorID",8]
["StateID",22,25,24,23]
["ThenD",0,0,0,1]
[]
["ID",5]
["IfFactorID",8]
["StateID",22,25,24,23]
["ThenD",1,1,1,0]
[]
["ID",6]
["IfFactorID","**Deleted**"]
["StateID"]
["ThenD","pASucc A_Rev_1","pASucc A_Rev_2","pASucc A_Rev_3",0]
[]
["ID",7]
["IfFactorID","**Deleted**"]
["StateID"]
["ThenD","pAFail A_Rev_1","pAFail A_Rev_2","pAFail A_Rev_3",0]
[]
["ID",8]
["IfFactorID","**Deleted**"]
["StateID"]
["ThenD","pAMort A_Rev_1","pAMort A_Rev_2","pAMort A_Rev_3",0]
[]
["ID",9]
["IfFactorID",7]
["StateID",19,21,20]
["ThenD","rInfection Initial_THA","ID 10","ID 11"]
[]
["ID",10]
["IfFactorID","**Deleted**"]
["StateID"]
["ThenD","rInfection Aseptic_1","rInfection Aseptic_2","rInfection Aseptic_3",0,0]
[]
["ID",11]
["IfFactorID","**Deleted**"]
["StateID"]
["ThenD","rInfection Infect_1","rInfection Infect_2","rInfection Infect_3",0]
[]
["ID",12]
["IfFactorID",8]
["StateID",22,25,24,23]
["ThenD",0,0,0,1]
[]
["ID",13]
["IfFactorID",8]
["StateID",22,25,24,23]
["ThenD",1,1,1,0]
[]
["ID",14]
["IfFactorID",1]
["StateID",3,2]
["ThenD","rNatural",0]
[]
["ID",15]
["IfFactorID",7]
["StateID",21,50,51,20,48,49,19]
["ThenD","rAsepFail AsepRev1","rAsepFail AsepRev2","rAsepFail AsepRev3","rAsepFail InfecRev1","rAsepFail InfecRev2","rAsepFail InfecRev3","rAsepFail InitialTHA"]
[]
["ID",17]
["IfFactorID",8]
["StateID",23,"(other)"]
["ThenD",1,0]
[]
["ID",19]
["IfFactorID",12]
["StateID",57,56,55,"(other)"]
["ThenD","pAsepFair Rev1_","pAsepFair Rev2_","pAsepFair Rev3_",0]
[]
["ID",20]
["IfFactorID",12]
["StateID",57,56,55,"(other)"]
["ThenD","pAsepFail Rev1_","pAsepFail Rev2_","pAsepFail Rev3_",0]
[]
["ID",21]
["IfFactorID",7]
["StateID",21,50,51,20,48,49,19]
["ThenD","rInfecFail AsepRev1","rInfecFail AsepRev2","rInfecFail AsepRev3","rInfecFail InfecRev1","rInfecFail InfecRev2","rInfecFail InfecRev3",0]
[]
["ID",22]
["IfFactorID",8]
["StateID",23,"(other)"]
["ThenD",1,0]
[]
["ID",23]
["IfFactorID",8]
["StateID",23,"(other)"]
["ThenD",0,1]
[]
["ID",24]
["IfFactorID",8]
["StateID",23,"(other)"]
["ThenD",0,1]

{"sheet":"Last_Surg","index":13,"n_rows":0,"n_cols":0,"rows_kept":0,"cut":false,"hidden":false,"merged":[]}

{"sheet":"Aseptic_Ct","index":14,"n_rows":0,"n_cols":0,"rows_kept":0,"cut":false,"hidden":false,"merged":[]}

{"sheet":"Revision_Ct","index":15,"n_rows":0,"n_cols":0,"rows_kept":0,"cut":false,"hidden":false,"merged":[]}

{"sheet":"Sheet1","index":16,"n_rows":0,"n_cols":0,"rows_kept":0,"cut":false,"hidden":false,"merged":[]}